Workbook

Sheet Erfassung
A1: Jahr | B1: Wochenarbeitszeit | C1: Prozent alle Mt | D1: Ferientage im Jahr | E1: Jan | F1: Feb | G1: März | H1: Apr | I1: Mai | J1: Juni | K1: Juli | L1: Aug | M1: Sept | N1: Okt | O1: Nov | P1: Dez
A2: 2024 | B2: 42 | C2: 1 | D2: 30 | E2: =$C$2 -> 1 | F2: =$C$2 -> 1 | G2: 1 | H2: 1 | I2: 1 | J2: 1 | K2: 1 | L2: 1 | M2: 1 | N2: 1 | O2: 1 | P2: 1
J5: zu den Feiertagen/Ferien
J7: zu den Arbeitszeiten
B10: im sk-app unter Administration, Arbeitszeiten eintragen: | E10: im sk-app unter Administration+2021, die Stunden eintragen:
B13: Saldovortrag | C13: Ferien | E13: Jan | F13: Feb | G13: März | H13: Apr | I13: Mai | J13: Juni | K13: Juli | L13: Aug | M13: Sept | N13: Okt | O13: Nov | P13: Dez
B14: siehe Excel Zeiterfassung Mappe "Monat 2023" | C14: =Arbeitszeiten!AK31 -> 252 | E14: =Arbeitszeiten!AJ4 -> 176.4 | F14: =Arbeitszeiten!AJ6 -> 176.4 | G14: =Arbeitszeiten!AJ8 -> 168 | H14: =Arbeitszeiten!AJ10 -> 176.4 | I14: =Arbeitszeiten!AJ12 -> 172.2 | J14: =Arbeitszeiten!AJ14 -> 168 | K14: =Arbeitszeiten!AJ16 -> 193.2 | L14: =Arbeitszeiten!AJ18 -> 176.4 | M14: =Arbeitszeiten!AJ20 -> 176.4 | N14: =Arbeitszeiten!AJ22 -> 193.2 | O14: =Arbeitszeiten!AJ24 -> 176.4 | P14: =Arbeitszeiten!AJ26 -> 168

Sheet Feiertage
A1: Datum | B1: Feiertag
A2: 2024-01-01 | B2: Neujahrstag | E2: zu den Resultaten
A3: 2024-01-02 | B3: Berchtoldstag (statt 1. Mai = gleiches Resultat)
A4: 2024-03-29 | B4: Karfreitag
A5: 2024-04-01 | B5: Ostermontag
A6: 2024-05-09 | B6: Auffahrt
A7: 2024-05-20 | B7: Pfingstmontag
A8: 2024-08-01 | B8: Nationalfeiertag Schweiz
A9: 2024-12-25 | B9: Weihnachten
A10: 2024-12-26 | B10: Stephanstag

Sheet Arbeitszeiten
A1: Arbeitszeiten
A2: 2024 | B2: 1 | C2: 2 | D2: 3 | E2: 4 | F2: 5 | G2: 6 | H2: 7 | I2: 8 | J2: 9 | K2: 10 | L2: 11 | M2: 12 | N2: 13 | O2: 14 | P2: 15 | Q2: 16 | R2: 17 | S2: 18 | T2: 19 | U2: 20 | V2: 21 | W2: 22 | X2: 23 | Y2: 24 | Z2: 25 | AA2: 26 | AB2: 27 | AC2: 28 | AD2: 29 | AE2: 30 | AF2: 31 | AG2: F Tage | AH2: Ferien h | AI2: A-Tage | AJ2: Monatssaldo
B3: 2024-01-01 | C3: =B3+1 -> 2024-01-02 | D3: =C3+1 -> 2024-01-03 | E3: 2024-01-04 | F3: 2024-01-05 | G3: 2024-01-06 | H3: 2024-01-07 | I3: 2024-01-08 | J3: 2024-01-09 | K3: 2024-01-10 | L3: 2024-01-11 | M3: 2024-01-12 | N3: 2024-01-13 | O3: 2024-01-14 | P3: 2024-01-15 | Q3: 2024-01-16 | R3: 2024-01-17 | S3: 2024-01-18 | T3: 2024-01-19 | U3: 2024-01-20 | V3: 2024-01-21 | W3: 2024-01-22 | X3: 2024-01-23 | Y3: 2024-01-24 | Z3: 2024-01-25 | AA3: 2024-01-26 | AB3: 2024-01-27 | AC3: 2024-01-28 | AD3: 2024-01-29 | AE3: 2024-01-30 | AF3: 2024-01-31
A4: Januar | B4: =IF(ISNA(VLOOKUP(B3,Feiertage!$A:$C,3,FALSE)),IF(OR(WEEKDAY(B3)=1,WEEKDAY(B3)=7),"",Erfassung!$B$2*SUM(Erfassung!$E$2:$E$2)/5),"F") -> F | C4: =IF(ISNA(VLOOKUP(C3,Feiertage!$A:$C,3,FALSE)),IF(OR(WEEKDAY(C3)=1,WEEKDAY(C3)=7),"",Erfassung!$B$2*SUM(Erfassung!$E$2:$E$2)/5),"F") -> F | D4: =IF(ISNA(VLOOKUP(D3,Feiertage!$A:$C,3,FALSE)),IF(OR(WEEKDAY(D3)=1,WEEKDAY(D3)=7),"",Erfassung!$B$2*SUM(Erfassung!$E$2:$E$2)/5),"F") -> 8.4 | E4: =IF(ISNA(VLOOKUP(E3,Feiertage!$A:$C,3,FALSE)),IF(OR(WEEKDAY(E3)=1,WEEKDAY(E3)=7),"",Erfassung!$B$2*SUM(Erfassung!$E$2:$E$2)/5),"F") -> 8.4 | F4: =IF(ISNA(VLOOKUP(F3,Feiertage!$A:$C,3,FALSE)),IF(OR(WEEKDAY(F3)=1,WEEKDAY(F3)=7),"",Erfassung!$B$2*SUM(Erfassung!$E$2:$E$2)/5),"F") -> 8.4 | G4: =IF(ISNA(VLOOKUP(G3,Feiertage!$A:$C,3,FALSE)),IF(OR(WEEKDAY(G3)=1,WEEKDAY(G3)=7),"",Erfassung!$B$2*SUM(Erfassung!$E$2:$E$2)/5),"F") ->  | H4: =IF(ISNA(VLOOKUP(H3,Feiertage!$A:$C,3,FALSE)),IF(OR(WEEKDAY(H3)=1,WEEKDAY(H3)=7),"",Erfassung!$B$2*SUM(Erfassung!$E$2:$E$2)/5),"F") ->  | I4: =IF(ISNA(VLOOKUP(I3,Feiertage!$A:$C,3,FALSE)),IF(OR(WEEKDAY(I3)=1,WEEKDAY(I3)=7),"",Erfassung!$B$2*SUM(Erfassung!$E$2:$E$2)/5),"F") -> 8.4 | J4: =IF(ISNA(VLOOKUP(J3,Feiertage!$A:$C,3,FALSE)),IF(OR(WEEKDAY(J3)=1,WEEKDAY(J3)=7),"",Erfassung!$B$2*SUM(Erfassung!$E$2:$E$2)/5),"F") -> 8.4 | K4: =IF(ISNA(VLOOKUP(K3,Feiertage!$A:$C,3,FALSE)),IF(OR(WEEKDAY(K3)=1,WEEKDAY(K3)=7),"",Erfassung!$B$2*SUM(Erfassung!$E$2:$E$2)/5),"F") -> 8.4 | L4: =IF(ISNA(VLOOKUP(L3,Feiertage!$A:$C,3,FALSE)),IF(OR(WEEKDAY(L3)=1,WEEKDAY(L3)=7),"",Erfassung!$B$2*SUM(Erfassung!$E$2:$E$2)/5),"F") -> 8.4 | M4: =IF(ISNA(VLOOKUP(M3,Feiertage!$A:$C,3,FALSE)),IF(OR(WEEKDAY(M3)=1,WEEKDAY(M3)=7),"",Erfassung!$B$2*SUM(Erfassung!$E$2:$E$2)/5),"F") -> 8.4 | N4: =IF(ISNA(VLOOKUP(N3,Feiertage!$A:$C,3,FALSE)),IF(OR(WEEKDAY(N3)=1,WEEKDAY(N3)=7),"",Erfassung!$B$2*SUM(Erfassung!$E$2:$E$2)/5),"F") ->  | O4: =IF(ISNA(VLOOKUP(O3,Feiertage!$A:$C,3,FALSE)),IF(OR(WEEKDAY(O3)=1,WEEKDAY(O3)=7),"",Erfassung!$B$2*SUM(Erfassung!$E$2:$E$2)/5),"F") ->  | P4: =IF(ISNA(VLOOKUP(P3,Feiertage!$A:$C,3,FALSE)),IF(OR(WEEKDAY(P3)=1,WEEKDAY(P3)=7),"",Erfassung!$B$2*SUM(Erfassung!$E$2:$E$2)/5),"F") -> 8.4 | Q4: =IF(ISNA(VLOOKUP(Q3,Feiertage!$A:$C,3,FALSE)),IF(OR(WEEKDAY(Q3)=1,WEEKDAY(Q3)=7),"",Erfassung!$B$2*SUM(Erfassung!$E$2:$E$2)/5),"F") -> 8.4 | R4: =IF(ISNA(VLOOKUP(R3,Feiertage!$A:$C,3,FALSE)),IF(OR(WEEKDAY(R3)=1,WEEKDAY(R3)=7),"",Erfassung!$B$2*SUM(Erfassung!$E$2:$E$2)/5),"F") -> 8.4 | S4: =IF(ISNA(VLOOKUP(S3,Feiertage!$A:$C,3,FALSE)),IF(OR(WEEKDAY(S3)=1,WEEKDAY(S3)=7),"",Erfassung!$B$2*SUM(Erfassung!$E$2:$E$2)/5),"F") -> 8.4 | T4: =IF(ISNA(VLOOKUP(T3,Feiertage!$A:$C,3,FALSE)),IF(OR(WEEKDAY(T3)=1,WEEKDAY(T3)=7),"",Erfassung!$B$2*SUM(Erfassung!$E$2:$E$2)/5),"F") -> 8.4 | U4: =IF(ISNA(VLOOKUP(U3,Feiertage!$A:$C,3,FALSE)),IF(OR(WEEKDAY(U3)=1,WEEKDAY(U3)=7),"",Erfassung!$B$2*SUM(Erfassung!$E$2:$E$2)/5),"F") ->  | V4: =IF(ISNA(VLOOKUP(V3,Feiertage!$A:$C,3,FALSE)),IF(OR(WEEKDAY(V3)=1,WEEKDAY(V3)=7),"",Erfassung!$B$2*SUM(Erfassung!$E$2:$E$2)/5),"F") ->  | W4: =IF(ISNA(VLOOKUP(W3,Feiertage!$A:$C,3,FALSE)),IF(OR(WEEKDAY(W3)=1,WEEKDAY(W3)=7),"",Erfassung!$B$2*SUM(Erfassung!$E$2:$E$2)/5),"F") -> 8.4 | X4: =IF(ISNA(VLOOKUP(X3,Feiertage!$A:$C,3,FALSE)),IF(OR(WEEKDAY(X3)=1,WEEKDAY(X3)=7),"",Erfassung!$B$2*SUM(Erfassung!$E$2:$E$2)/5),"F") -> 8.4 | Y4: =IF(ISNA(VLOOKUP(Y3,Feiertage!$A:$C,3,FALSE)),IF(OR(WEEKDAY(Y3)=1,WEEKDAY(Y3)=7),"",Erfassung!$B$2*SUM(Erfassung!$E$2:$E$2)/5),"F") -> 8.4 | Z4: =IF(ISNA(VLOOKUP(Z3,Feiertage!$A:$C,3,FALSE)),IF(OR(WEEKDAY(Z3)=1,WEEKDAY(Z3)=7),"",Erfassung!$B$2*SUM(Erfassung!$E$2:$E$2)/5),"F") -> 8.4 | AA4: =IF(ISNA(VLOOKUP(AA3,Feiertage!$A:$C,3,FALSE)),IF(OR(WEEKDAY(AA3)=1,WEEKDAY(AA3)=7),"",Erfassung!$B$2*SUM(Erfassung!$E$2:$E$2)/5),"F") -> 8.4 | AB4: =IF(ISNA(VLOOKUP(AB3,Feiertage!$A:$C,3,FALSE)),IF(OR(WEEKDAY(AB3)=1,WEEKDAY(AB3)=7),"",Erfassung!$B$2*SUM(Erfassung!$E$2:$E$2)/5),"F") ->  | AC4: =IF(ISNA(VLOOKUP(AC3,Feiertage!$A:$C,3,FALSE)),IF(OR(WEEKDAY(AC3)=1,WEEKDAY(AC3)=7),"",Erfassung!$B$2*SUM(Erfassung!$E$2:$E$2)/5),"F") ->  | AD4: =IF(ISNA(VLOOKUP(AD3,Feiertage!$A:$C,3,FALSE)),IF(OR(WEEKDAY(AD3)=1,WEEKDAY(AD3)=7),"",Erfassung!$B$2*SUM(Erfassung!$E$2:$E$2)/5),"F") -> 8.4 | AE4: =IF(ISNA(VLOOKUP(AE3,Feiertage!$A:$C,3,FALSE)),IF(OR(WEEKDAY(AE3)=1,WEEKDAY(AE3)=7),"",Erfassung!$B$2*SUM(Erfassung!$E$2:$E$2)/5),"F") -> 8.4 | AF4: =IF(ISNA(VLOOKUP(AF3,Feiertage!$A:$C,3,FALSE)),IF(OR(WEEKDAY(AF3)=1,WEEKDAY(AF3)=7),"",Erfassung!$B$2*SUM(Erfassung!$E$2:$E$2)/5),"F") -> 8.4 | AG4: =Erfassung!$D$2/12 -> 2.5 | AH4: =IF(AG4="","",AG4*(Erfassung!$B$2/5)*SUM(Erfassung!E$2)) -> 21 | AI4: =COUNT(B4:AF4,"<0.1") -> 21 | AJ4: =SUM(B4:AF4) -> 176.4 | AK4: Januar
B5: =AF3+1 -> 2024-02-01 | C5: =B5+1 -> 2024-02-02 | D5: 2024-02-03 | E5: 2024-02-04 | F5: 2024-02-05 | G5: 2024-02-06 | H5: 2024-02-07 | I5: 2024-02-08 | J5: 2024-02-09 | K5: 2024-02-10 | L5: 2024-02-11 | M5: 2024-02-12 | N5: 2024-02-13 | O5: 2024-02-14 | P5: 2024-02-15 | Q5: 2024-02-16 | R5: 2024-02-17 | S5: 2024-02-18 | T5: 2024-02-19 | U5: 2024-02-20 | V5: 2024-02-21 | W5: 2024-02-22 | X5: 2024-02-23 | Y5: 2024-02-24 | Z5: 2024-02-25 | AA5: 2024-02-26 | AB5: 2024-02-27 | AC5: 2024-02-28 | AD5: 2024-02-29 | AG5: =Erfassung!$D$2/12 -> 2.5 | AH5: =IF(AG5="","",AG5*(Erfassung!$B$2/5)*SUM(Erfassung!E$2)) -> 21
A6: Februar | B6: =IF(ISNA(VLOOKUP(B5,Feiertage!$A:$C,3,FALSE)),IF(OR(WEEKDAY(B5)=1,WEEKDAY(B5)=7),"",Erfassung!$B$2*SUM(Erfassung!$F2:$F2)/5),"F") -> 8.4 | C6: =IF(ISNA(VLOOKUP(C5,Feiertage!$A:$C,3,FALSE)),IF(OR(WEEKDAY(C5)=1,WEEKDAY(C5)=7),"",Erfassung!$B$2*SUM(Erfassung!$F2:$F2)/5),"F") -> 8.4 | D6: =IF(ISNA(VLOOKUP(D5,Feiertage!$A:$C,3,FALSE)),IF(OR(WEEKDAY(D5)=1,WEEKDAY(D5)=7),"",Erfassung!$B$2*SUM(Erfassung!$F2:$F2)/5),"F") ->  | E6: =IF(ISNA(VLOOKUP(E5,Feiertage!$A:$C,3,FALSE)),IF(OR(WEEKDAY(E5)=1,WEEKDAY(E5)=7),"",Erfassung!$B$2*SUM(Erfassung!$F2:$F2)/5),"F") ->  | F6: =IF(ISNA(VLOOKUP(F5,Feiertage!$A:$C,3,FALSE)),IF(OR(WEEKDAY(F5)=1,WEEKDAY(F5)=7),"",Erfassung!$B$2*SUM(Erfassung!$F2:$F2)/5),"F") -> 8.4 | G6: =IF(ISNA(VLOOKUP(G5,Feiertage!$A:$C,3,FALSE)),IF(OR(WEEKDAY(G5)=1,WEEKDAY(G5)=7),"",Erfassung!$B$2*SUM(Erfassung!$F2:$F2)/5),"F") -> 8.4 | H6: =IF(ISNA(VLOOKUP(H5,Feiertage!$A:$C,3,FALSE)),IF(OR(WEEKDAY(H5)=1,WEEKDAY(H5)=7),"",Erfassung!$B$2*SUM(Erfassung!$F2:$F2)/5),"F") -> 8.4 | I6: =IF(ISNA(VLOOKUP(I5,Feiertage!$A:$C,3,FALSE)),IF(OR(WEEKDAY(I5)=1,WEEKDAY(I5)=7),"",Erfassung!$B$2*SUM(Erfassung!$F2:$F2)/5),"F") -> 8.4 | J6: =IF(ISNA(VLOOKUP(J5,Feiertage!$A:$C,3,FALSE)),IF(OR(WEEKDAY(J5)=1,WEEKDAY(J5)=7),"",Erfassung!$B$2*SUM(Erfassung!$F2:$F2)/5),"F") -> 8.4 | K6: =IF(ISNA(VLOOKUP(K5,Feiertage!$A:$C,3,FALSE)),IF(OR(WEEKDAY(K5)=1,WEEKDAY(K5)=7),"",Erfassung!$B$2*SUM(Erfassung!$F2:$F2)/5),"F") ->  | L6: =IF(ISNA(VLOOKUP(L5,Feiertage!$A:$C,3,FALSE)),IF(OR(WEEKDAY(L5)=1,WEEKDAY(L5)=7),"",Erfassung!$B$2*SUM(Erfassung!$F2:$F2)/5),"F") ->  | M6: =IF(ISNA(VLOOKUP(M5,Feiertage!$A:$C,3,FALSE)),IF(OR(WEEKDAY(M5)=1,WEEKDAY(M5)=7),"",Erfassung!$B$2*SUM(Erfassung!$F2:$F2)/5),"F") -> 8.4 | N6: =IF(ISNA(VLOOKUP(N5,Feiertage!$A:$C,3,FALSE)),IF(OR(WEEKDAY(N5)=1,WEEKDAY(N5)=7),"",Erfassung!$B$2*SUM(Erfassung!$F2:$F2)/5),"F") -> 8.4 | O6: =IF(ISNA(VLOOKUP(O5,Feiertage!$A:$C,3,FALSE)),IF(OR(WEEKDAY(O5)=1,WEEKDAY(O5)=7),"",Erfassung!$B$2*SUM(Erfassung!$F2:$F2)/5),"F") -> 8.4 | P6: =IF(ISNA(VLOOKUP(P5,Feiertage!$A:$C,3,FALSE)),IF(OR(WEEKDAY(P5)=1,WEEKDAY(P5)=7),"",Erfassung!$B$2*SUM(Erfassung!$F2:$F2)/5),"F") -> 8.4 | Q6: =IF(ISNA(VLOOKUP(Q5,Feiertage!$A:$C,3,FALSE)),IF(OR(WEEKDAY(Q5)=1,WEEKDAY(Q5)=7),"",Erfassung!$B$2*SUM(Erfassung!$F2:$F2)/5),"F") -> 8.4 | R6: =IF(ISNA(VLOOKUP(R5,Feiertage!$A:$C,3,FALSE)),IF(OR(WEEKDAY(R5)=1,WEEKDAY(R5)=7),"",Erfassung!$B$2*SUM(Erfassung!$F2:$F2)/5),"F") ->  | S6: =IF(ISNA(VLOOKUP(S5,Feiertage!$A:$C,3,FALSE)),IF(OR(WEEKDAY(S5)=1,WEEKDAY(S5)=7),"",Erfassung!$B$2*SUM(Erfassung!$F2:$F2)/5),"F") ->  | T6: =IF(ISNA(VLOOKUP(T5,Feiertage!$A:$C,3,FALSE)),IF(OR(WEEKDAY(T5)=1,WEEKDAY(T5)=7),"",Erfassung!$B$2*SUM(Erfassung!$F2:$F2)/5),"F") -> 8.4 | U6: =IF(ISNA(VLOOKUP(U5,Feiertage!$A:$C,3,FALSE)),IF(OR(WEEKDAY(U5)=1,WEEKDAY(U5)=7),"",Erfassung!$B$2*SUM(Erfassung!$F2:$F2)/5),"F") -> 8.4 | V6: =IF(ISNA(VLOOKUP(V5,Feiertage!$A:$C,3,FALSE)),IF(OR(WEEKDAY(V5)=1,WEEKDAY(V5)=7),"",Erfassung!$B$2*SUM(Erfassung!$F2:$F2)/5),"F") -> 8.4 | W6: =IF(ISNA(VLOOKUP(W5,Feiertage!$A:$C,3,FALSE)),IF(OR(WEEKDAY(W5)=1,WEEKDAY(W5)=7),"",Erfassung!$B$2*SUM(Erfassung!$F2:$F2)/5),"F") -> 8.4 | X6: =IF(ISNA(VLOOKUP(X5,Feiertage!$A:$C,3,FALSE)),IF(OR(WEEKDAY(X5)=1,WEEKDAY(X5)=7),"",Erfassung!$B$2*SUM(Erfassung!$F2:$F2)/5),"F") -> 8.4 | Y6: =IF(ISNA(VLOOKUP(Y5,Feiertage!$A:$C,3,FALSE)),IF(OR(WEEKDAY(Y5)=1,WEEKDAY(Y5)=7),"",Erfassung!$B$2*SUM(Erfassung!$F2:$F2)/5),"F") ->  | Z6: =IF(ISNA(VLOOKUP(Z5,Feiertage!$A:$C,3,FALSE)),IF(OR(WEEKDAY(Z5)=1,WEEKDAY(Z5)=7),"",Erfassung!$B$2*SUM(Erfassung!$F2:$F2)/5),"F") ->  | AA6: =IF(ISNA(VLOOKUP(AA5,Feiertage!$A:$C,3,FALSE)),IF(OR(WEEKDAY(AA5)=1,WEEKDAY(AA5)=7),"",Erfassung!$B$2*SUM(Erfassung!$F2:$F2)/5),"F") -> 8.4 | AB6: =IF(ISNA(VLOOKUP(AB5,Feiertage!$A:$C,3,FALSE)),IF(OR(WEEKDAY(AB5)=1,WEEKDAY(AB5)=7),"",Erfassung!$B$2*SUM(Erfassung!$F2:$F2)/5),"F") -> 8.4 | AC6: =IF(ISNA(VLOOKUP(AC5,Feiertage!$A:$C,3,FALSE)),IF(OR(WEEKDAY(AC5)=1,WEEKDAY(AC5)=7),"",Erfassung!$B$2*SUM(Erfassung!$F2:$F2)/5),"F") -> 8.4 | AD6: =IF(ISNA(VLOOKUP(AD5,Feiertage!$A:$C,3,FALSE)),IF(OR(WEEKDAY(AD5)=1,WEEKDAY(AD5)=7),"",Erfassung!$B$2*SUM(Erfassung!$F2:$F2)/5),"F") -> 8.4 | AE6: =IF(ISNA(VLOOKUP(AE5,Feiertage!$A:$C,3,FALSE)),IF(OR(WEEKDAY(AE5)=1,WEEKDAY(AE5)=7),"",Erfassung!$B$2*SUM(Erfassung!$F2:$F2)/5),"F") ->  | AF6: =IF(ISNA(VLOOKUP(AF5,Feiertage!$A:$C,3,FALSE)),IF(OR(WEEKDAY(AF5)=1,WEEKDAY(AF5)=7),"",Erfassung!$B$2*SUM(Erfassung!$F2:$F2)/5),"F") ->  | AG6: =Erfassung!$D$2/12 -> 2.5 | AH6: =IF(AG6="","",AG6*(Erfassung!$B$2/5)*SUM(Erfassung!F$2)) -> 21 | AI6: =COUNT(B6:AF6,"<0.1") -> 21 | AJ6: =SUM(B6:AF6) -> 176.4 | AK6: Februar
B7: =AD5+1 -> 2024-03-01 | C7: =B7+1 -> 45353 | D7: 45354 | E7: 45355 | F7: 45356 | G7: 45357 | H7: 45358 | I7: 45359 | J7: 45360 | K7: 45361 | L7: 45362 | M7: 45363 | N7: 45364 | O7: 45365 | P7: 45366 | Q7: 45367 | R7: 45368 | S7: 45369 | T7: 45370 | U7: 45371 | V7: 45372 | W7: 45373 | X7: 45374 | Y7: 45375 | Z7: 45376 | AA7: 45377 | AB7: 45378 | AC7: 45379 | AD7: 45380 | AE7: 45381 | AF7: 45382 | AG7: =Erfassung!$D$2/12 -> 2.5 | AH7: =IF(AG7="","",AG7*(Erfassung!$B$2/5)*SUM(Erfassung!E$2)) -> 21
A8: März | B8: =IF(ISNA(VLOOKUP(B7,Feiertage!$A:$C,3,FALSE)),IF(OR(WEEKDAY(B7)=1,WEEKDAY(B7)=7),"",Erfassung!$B$2*SUM(Erfassung!$G2:$G2)/5),"F") -> 8.4 | C8: =IF(ISNA(VLOOKUP(C7,Feiertage!$A:$C,3,FALSE)),IF(OR(WEEKDAY(C7)=1,WEEKDAY(C7)=7),"",Erfassung!$B$2*SUM(Erfassung!$G2:$G2)/5),"F") ->  | D8: =IF(ISNA(VLOOKUP(D7,Feiertage!$A:$C,3,FALSE)),IF(OR(WEEKDAY(D7)=1,WEEKDAY(D7)=7),"",Erfassung!$B$2*SUM(Erfassung!$G2:$G2)/5),"F") ->  | E8: =IF(ISNA(VLOOKUP(E7,Feiertage!$A:$C,3,FALSE)),IF(OR(WEEKDAY(E7)=1,WEEKDAY(E7)=7),"",Erfassung!$B$2*SUM(Erfassung!$G2:$G2)/5),"F") -> 8.4 | F8: =IF(ISNA(VLOOKUP(F7,Feiertage!$A:$C,3,FALSE)),IF(OR(WEEKDAY(F7)=1,WEEKDAY(F7)=7),"",Erfassung!$B$2*SUM(Erfassung!$G2:$G2)/5),"F") -> 8.4 | G8: =IF(ISNA(VLOOKUP(G7,Feiertage!$A:$C,3,FALSE)),IF(OR(WEEKDAY(G7)=1,WEEKDAY(G7)=7),"",Erfassung!$B$2*SUM(Erfassung!$G2:$G2)/5),"F") -> 8.4 | H8: =IF(ISNA(VLOOKUP(H7,Feiertage!$A:$C,3,FALSE)),IF(OR(WEEKDAY(H7)=1,WEEKDAY(H7)=7),"",Erfassung!$B$2*SUM(Erfassung!$G2:$G2)/5),"F") -> 8.4 | I8: =IF(ISNA(VLOOKUP(I7,Feiertage!$A:$C,3,FALSE)),IF(OR(WEEKDAY(I7)=1,WEEKDAY(I7)=7),"",Erfassung!$B$2*SUM(Erfassung!$G2:$G2)/5),"F") -> 8.4 | J8: =IF(ISNA(VLOOKUP(J7,Feiertage!$A:$C,3,FALSE)),IF(OR(WEEKDAY(J7)=1,WEEKDAY(J7)=7),"",Erfassung!$B$2*SUM(Erfassung!$G2:$G2)/5),"F") ->  | K8: =IF(ISNA(VLOOKUP(K7,Feiertage!$A:$C,3,FALSE)),IF(OR(WEEKDAY(K7)=1,WEEKDAY(K7)=7),"",Erfassung!$B$2*SUM(Erfassung!$G2:$G2)/5),"F") ->  | L8: =IF(ISNA(VLOOKUP(L7,Feiertage!$A:$C,3,FALSE)),IF(OR(WEEKDAY(L7)=1,WEEKDAY(L7)=7),"",Erfassung!$B$2*SUM(Erfassung!$G2:$G2)/5),"F") -> 8.4 | M8: =IF(ISNA(VLOOKUP(M7,Feiertage!$A:$C,3,FALSE)),IF(OR(WEEKDAY(M7)=1,WEEKDAY(M7)=7),"",Erfassung!$B$2*SUM(Erfassung!$G2:$G2)/5),"F") -> 8.4 | N8: =IF(ISNA(VLOOKUP(N7,Feiertage!$A:$C,3,FALSE)),IF(OR(WEEKDAY(N7)=1,WEEKDAY(N7)=7),"",Erfassung!$B$2*SUM(Erfassung!$G2:$G2)/5),"F") -> 8.4 | O8: =IF(ISNA(VLOOKUP(O7,Feiertage!$A:$C,3,FALSE)),IF(OR(WEEKDAY(O7)=1,WEEKDAY(O7)=7),"",Erfassung!$B$2*SUM(Erfassung!$G2:$G2)/5),"F") -> 8.4 | P8: =IF(ISNA(VLOOKUP(P7,Feiertage!$A:$C,3,FALSE)),IF(OR(WEEKDAY(P7)=1,WEEKDAY(P7)=7),"",Erfassung!$B$2*SUM(Erfassung!$G2:$G2)/5),"F") -> 8.4 | Q8: =IF(ISNA(VLOOKUP(Q7,Feiertage!$A:$C,3,FALSE)),IF(OR(WEEKDAY(Q7)=1,WEEKDAY(Q7)=7),"",Erfassung!$B$2*SUM(Erfassung!$G2:$G2)/5),"F") ->  | R8: =IF(ISNA(VLOOKUP(R7,Feiertage!$A:$C,3,FALSE)),IF(OR(WEEKDAY(R7)=1,WEEKDAY(R7)=7),"",Erfassung!$B$2*SUM(Erfassung!$G2:$G2)/5),"F") ->  | S8: =IF(ISNA(VLOOKUP(S7,Feiertage!$A:$C,3,FALSE)),IF(OR(WEEKDAY(S7)=1,WEEKDAY(S7)=7),"",Erfassung!$B$2*SUM(Erfassung!$G2:$G2)/5),"F") -> 8.4 | T8: =IF(ISNA(VLOOKUP(T7,Feiertage!$A:$C,3,FALSE)),IF(OR(WEEKDAY(T7)=1,WEEKDAY(T7)=7),"",Erfassung!$B$2*SUM(Erfassung!$G2:$G2)/5),"F") -> 8.4 | U8: =IF(ISNA(VLOOKUP(U7,Feiertage!$A:$C,3,FALSE)),IF(OR(WEEKDAY(U7)=1,WEEKDAY(U7)=7),"",Erfassung!$B$2*SUM(Erfassung!$G2:$G2)/5),"F") -> 8.4 | V8: =IF(ISNA(VLOOKUP(V7,Feiertage!$A:$C,3,FALSE)),IF(OR(WEEKDAY(V7)=1,WEEKDAY(V7)=7),"",Erfassung!$B$2*SUM(Erfassung!$G2:$G2)/5),"F") -> 8.4 | W8: =IF(ISNA(VLOOKUP(W7,Feiertage!$A:$C,3,FALSE)),IF(OR(WEEKDAY(W7)=1,WEEKDAY(W7)=7),"",Erfassung!$B$2*SUM(Erfassung!$G2:$G2)/5),"F") -> 8.4 | X8: =IF(ISNA(VLOOKUP(X7,Feiertage!$A:$C,3,FALSE)),IF(OR(WEEKDAY(X7)=1,WEEKDAY(X7)=7),"",Erfassung!$B$2*SUM(Erfassung!$G2:$G2)/5),"F") ->  | Y8: =IF(ISNA(VLOOKUP(Y7,Feiertage!$A:$C,3,FALSE)),IF(OR(WEEKDAY(Y7)=1,WEEKDAY(Y7)=7),"",Erfassung!$B$2*SUM(Erfassung!$G2:$G2)/5),"F") ->  | Z8: =IF(ISNA(VLOOKUP(Z7,Feiertage!$A:$C,3,FALSE)),IF(OR(WEEKDAY(Z7)=1,WEEKDAY(Z7)=7),"",Erfassung!$B$2*SUM(Erfassung!$G2:$G2)/5),"F") -> 8.4 | AA8: =IF(ISNA(VLOOKUP(AA7,Feiertage!$A:$C,3,FALSE)),IF(OR(WEEKDAY(AA7)=1,WEEKDAY(AA7)=7),"",Erfassung!$B$2*SUM(Erfassung!$G2:$G2)/5),"F") -> 8.4 | AB8: =IF(ISNA(VLOOKUP(AB7,Feiertage!$A:$C,3,FALSE)),IF(OR(WEEKDAY(AB7)=1,WEEKDAY(AB7)=7),"",Erfassung!$B$2*SUM(Erfassung!$G2:$G2)/5),"F") -> 8.4 | AC8: =IF(ISNA(VLOOKUP(AC7,Feiertage!$A:$C,3,FALSE)),IF(OR(WEEKDAY(AC7)=1,WEEKDAY(AC7)=7),"",Erfassung!$B$2*SUM(Erfassung!$G2:$G2)/5),"F") -> 8.4 | AD8: =IF(ISNA(VLOOKUP(AD7,Feiertage!$A:$C,3,FALSE)),IF(OR(WEEKDAY(AD7)=1,WEEKDAY(AD7)=7),"",Erfassung!$B$2*SUM(Erfassung!$G2:$G2)/5),"F") -> F | AE8: =IF(ISNA(VLOOKUP(AE7,Feiertage!$A:$C,3,FALSE)),IF(OR(WEEKDAY(AE7)=1,WEEKDAY(AE7)=7),"",Erfassung!$B$2*SUM(Erfassung!$G2:$G2)/5),"F") ->  | AF8: =IF(ISNA(VLOOKUP(AF7,Feiertage!$A:$C,3,FALSE)),IF(OR(WEEKDAY(AF7)=1,WEEKDAY(AF7)=7),"",Erfassung!$B$2*SUM(Erfassung!$G2:$G2)/5),"F") ->  | AG8: =Erfassung!$D$2/12 -> 2.5 | AH8: =IF(AG8="","",AG8*(Erfassung!$B$2/5)*SUM(Erfassung!G$2)) -> 21 | AI8: =COUNT(B8:AF8,"<0.1") -> 20 | AJ8: =SUM(B8:AF8) -> 168 | AK8: März
B9: =AF7+1 -> 2024-04-01 | C9: =B9+1 -> 45384 | D9: 45385 | E9: 45386 | F9: 45387 | G9: 45388 | H9: 45389 | I9: 45390 | J9: 45391 | K9: 45392 | L9: 45393 | M9: 45394 | N9: 45395 | O9: 45396 | P9: 45397 | Q9: 45398 | R9: 45399 | S9: 45400 | T9: 45401 | U9: 45402 | V9: 45403 | W9: 45404 | X9: 45405 | Y9: 45406 | Z9: 45407 | AA9: 45408 | AB9: 45409 | AC9: 45410 | AD9: 45411 | AE9: 45412 | AG9: =Erfassung!$D$2/12 -> 2.5 | AH9: =IF(AG9="","",AG9*(Erfassung!$B$2/5)*SUM(Erfassung!E$2)) -> 21
A10: April | B10: =IF(ISNA(VLOOKUP(B9,Feiertage!$A:$C,3,FALSE)),IF(OR(WEEKDAY(B9)=1,WEEKDAY(B9)=7),"",Erfassung!$B$2*SUM(Erfassung!$H2:$H2)/5),"F") -> F | C10: =IF(ISNA(VLOOKUP(C9,Feiertage!$A:$C,3,FALSE)),IF(OR(WEEKDAY(C9)=1,WEEKDAY(C9)=7),"",Erfassung!$B$2*SUM(Erfassung!$H2:$H2)/5),"F") -> 8.4 | D10: =IF(ISNA(VLOOKUP(D9,Feiertage!$A:$C,3,FALSE)),IF(OR(WEEKDAY(D9)=1,WEEKDAY(D9)=7),"",Erfassung!$B$2*SUM(Erfassung!$H2:$H2)/5),"F") -> 8.4 | E10: =IF(ISNA(VLOOKUP(E9,Feiertage!$A:$C,3,FALSE)),IF(OR(WEEKDAY(E9)=1,WEEKDAY(E9)=7),"",Erfassung!$B$2*SUM(Erfassung!$H2:$H2)/5),"F") -> 8.4 | F10: =IF(ISNA(VLOOKUP(F9,Feiertage!$A:$C,3,FALSE)),IF(OR(WEEKDAY(F9)=1,WEEKDAY(F9)=7),"",Erfassung!$B$2*SUM(Erfassung!$H2:$H2)/5),"F") -> 8.4 | G10: =IF(ISNA(VLOOKUP(G9,Feiertage!$A:$C,3,FALSE)),IF(OR(WEEKDAY(G9)=1,WEEKDAY(G9)=7),"",Erfassung!$B$2*SUM(Erfassung!$H2:$H2)/5),"F") ->  | H10: =IF(ISNA(VLOOKUP(H9,Feiertage!$A:$C,3,FALSE)),IF(OR(WEEKDAY(H9)=1,WEEKDAY(H9)=7),"",Erfassung!$B$2*SUM(Erfassung!$H2:$H2)/5),"F") ->  | I10: =IF(ISNA(VLOOKUP(I9,Feiertage!$A:$C,3,FALSE)),IF(OR(WEEKDAY(I9)=1,WEEKDAY(I9)=7),"",Erfassung!$B$2*SUM(Erfassung!$H2:$H2)/5),"F") -> 8.4 | J10: =IF(ISNA(VLOOKUP(J9,Feiertage!$A:$C,3,FALSE)),IF(OR(WEEKDAY(J9)=1,WEEKDAY(J9)=7),"",Erfassung!$B$2*SUM(Erfassung!$H2:$H2)/5),"F") -> 8.4 | K10: =IF(ISNA(VLOOKUP(K9,Feiertage!$A:$C,3,FALSE)),IF(OR(WEEKDAY(K9)=1,WEEKDAY(K9)=7),"",Erfassung!$B$2*SUM(Erfassung!$H2:$H2)/5),"F") -> 8.4 | L10: =IF(ISNA(VLOOKUP(L9,Feiertage!$A:$C,3,FALSE)),IF(OR(WEEKDAY(L9)=1,WEEKDAY(L9)=7),"",Erfassung!$B$2*SUM(Erfassung!$H2:$H2)/5),"F") -> 8.4 | M10: =IF(ISNA(VLOOKUP(M9,Feiertage!$A:$C,3,FALSE)),IF(OR(WEEKDAY(M9)=1,WEEKDAY(M9)=7),"",Erfassung!$B$2*SUM(Erfassung!$H2:$H2)/5),"F") -> 8.4 | N10: =IF(ISNA(VLOOKUP(N9,Feiertage!$A:$C,3,FALSE)),IF(OR(WEEKDAY(N9)=1,WEEKDAY(N9)=7),"",Erfassung!$B$2*SUM(Erfassung!$H2:$H2)/5),"F") ->  | O10: =IF(ISNA(VLOOKUP(O9,Feiertage!$A:$C,3,FALSE)),IF(OR(WEEKDAY(O9)=1,WEEKDAY(O9)=7),"",Erfassung!$B$2*SUM(Erfassung!$H2:$H2)/5),"F") ->  | P10: =IF(ISNA(VLOOKUP(P9,Feiertage!$A:$C,3,FALSE)),IF(OR(WEEKDAY(P9)=1,WEEKDAY(P9)=7),"",Erfassung!$B$2*SUM(Erfassung!$H2:$H2)/5),"F") -> 8.4 | Q10: =IF(ISNA(VLOOKUP(Q9,Feiertage!$A:$C,3,FALSE)),IF(OR(WEEKDAY(Q9)=1,WEEKDAY(Q9)=7),"",Erfassung!$B$2*SUM(Erfassung!$H2:$H2)/5),"F") -> 8.4 | R10: =IF(ISNA(VLOOKUP(R9,Feiertage!$A:$C,3,FALSE)),IF(OR(WEEKDAY(R9)=1,WEEKDAY(R9)=7),"",Erfassung!$B$2*SUM(Erfassung!$H2:$H2)/5),"F") -> 8.4 | S10: =IF(ISNA(VLOOKUP(S9,Feiertage!$A:$C,3,FALSE)),IF(OR(WEEKDAY(S9)=1,WEEKDAY(S9)=7),"",Erfassung!$B$2*SUM(Erfassung!$H2:$H2)/5),"F") -> 8.4 | T10: =IF(ISNA(VLOOKUP(T9,Feiertage!$A:$C,3,FALSE)),IF(OR(WEEKDAY(T9)=1,WEEKDAY(T9)=7),"",Erfassung!$B$2*SUM(Erfassung!$H2:$H2)/5),"F") -> 8.4 | U10: =IF(ISNA(VLOOKUP(U9,Feiertage!$A:$C,3,FALSE)),IF(OR(WEEKDAY(U9)=1,WEEKDAY(U9)=7),"",Erfassung!$B$2*SUM(Erfassung!$H2:$H2)/5),"F") ->  | V10: =IF(ISNA(VLOOKUP(V9,Feiertage!$A:$C,3,FALSE)),IF(OR(WEEKDAY(V9)=1,WEEKDAY(V9)=7),"",Erfassung!$B$2*SUM(Erfassung!$H2:$H2)/5),"F") ->  | W10: =IF(ISNA(VLOOKUP(W9,Feiertage!$A:$C,3,FALSE)),IF(OR(WEEKDAY(W9)=1,WEEKDAY(W9)=7),"",Erfassung!$B$2*SUM(Erfassung!$H2:$H2)/5),"F") -> 8.4 | X10: =IF(ISNA(VLOOKUP(X9,Feiertage!$A:$C,3,FALSE)),IF(OR(WEEKDAY(X9)=1,WEEKDAY(X9)=7),"",Erfassung!$B$2*SUM(Erfassung!$H2:$H2)/5),"F") -> 8.4 | Y10: =IF(ISNA(VLOOKUP(Y9,Feiertage!$A:$C,3,FALSE)),IF(OR(WEEKDAY(Y9)=1,WEEKDAY(Y9)=7),"",Erfassung!$B$2*SUM(Erfassung!$H2:$H2)/5),"F") -> 8.4 | Z10: =IF(ISNA(VLOOKUP(Z9,Feiertage!$A:$C,3,FALSE)),IF(OR(WEEKDAY(Z9)=1,WEEKDAY(Z9)=7),"",Erfassung!$B$2*SUM(Erfassung!$H2:$H2)/5),"F") -> 8.4 | AA10: =IF(ISNA(VLOOKUP(AA9,Feiertage!$A:$C,3,FALSE)),IF(OR(WEEKDAY(AA9)=1,WEEKDAY(AA9)=7),"",Erfassung!$B$2*SUM(Erfassung!$H2:$H2)/5),"F") -> 8.4 | AB10: =IF(ISNA(VLOOKUP(AB9,Feiertage!$A:$C,3,FALSE)),IF(OR(WEEKDAY(AB9)=1,WEEKDAY(AB9)=7),"",Erfassung!$B$2*SUM(Erfassung!$H2:$H2)/5),"F") ->  | AC10: =IF(ISNA(VLOOKUP(AC9,Feiertage!$A:$C,3,FALSE)),IF(OR(WEEKDAY(AC9)=1,WEEKDAY(AC9)=7),"",Erfassung!$B$2*SUM(Erfassung!$H2:$H2)/5),"F") ->  | AD10: =IF(ISNA(VLOOKUP(AD9,Feiertage!$A:$C,3,FALSE)),IF(OR(WEEKDAY(AD9)=1,WEEKDAY(AD9)=7),"",Erfassung!$B$2*SUM(Erfassung!$H2:$H2)/5),"F") -> 8.4 | AE10: =IF(ISNA(VLOOKUP(AE9,Feiertage!$A:$C,3,FALSE)),IF(OR(WEEKDAY(AE9)=1,WEEKDAY(AE9)=7),"",Erfassung!$B$2*SUM(Erfassung!$H2:$H2)/5),"F") -> 8.4 | AF10: =IF(ISNA(VLOOKUP(AF9,Feiertage!$A:$C,3,FALSE)),IF(OR(WEEKDAY(AF9)=1,WEEKDAY(AF9)=7),"",Erfassung!$B$2*SUM(Erfassung!$H2:$H2)/5),"F") ->  | AG10: =Erfassung!$D$2/12 -> 2.5 | AH10: =IF(AG10="","",AG10*(Erfassung!$B$2/5)*SUM(Erfassung!H$2)) -> 21 | AI10: =COUNT(B10:AF10,"<0.1") -> 21 | AJ10: =SUM(B10:AF10) -> 176.4 | AK10: April
B11: =AE9+1 -> 45413 | C11: =B11+1 -> 45414 | D11: 45415 | E11: 45416 | F11: 45417 | G11: 45418 | H11: 45419 | I11: 45420 | J11: 45421 | K11: 45422 | L11: 45423 | M11: 45424 | N11: 45425 | O11: 45426 | P11: 45427 | Q11: 45428 | R11: 45429 | S11: 45430 | T11: 45431 | U11: 45432 | V11: 45433 | W11: 45434 | X11: 45435 | Y11: 45436 | Z11: 45437 | AA11: 45438 | AB11: 45439 | AC11: 45440 | AD11: 45441 | AE11: 45442 | AF11: 45443 | AG11: =Erfassung!$D$2/12 -> 2.5 | AH11: =IF(AG11="","",AG11*(Erfassung!$B$2/5)*SUM(Erfassung!E$2)) -> 21
A12: Mai | B12: =IF(ISNA(VLOOKUP(B11,Feiertage!$A:$C,3,FALSE)),IF(OR(WEEKDAY(B11)=1,WEEKDAY(B11)=7),"",Erfassung!$B$2*SUM(Erfassung!$I2:$I2)/5),"F") -> 8.4 | C12: =IF(ISNA(VLOOKUP(C11,Feiertage!$A:$C,3,FALSE)),IF(OR(WEEKDAY(C11)=1,WEEKDAY(C11)=7),"",Erfassung!$B$2*SUM(Erfassung!$I2:$I2)/5),"F") -> 8.4 | D12: =IF(ISNA(VLOOKUP(D11,Feiertage!$A:$C,3,FALSE)),IF(OR(WEEKDAY(D11)=1,WEEKDAY(D11)=7),"",Erfassung!$B$2*SUM(Erfassung!$I2:$I2)/5),"F")*50% -> 4.2 | E12: =IF(ISNA(VLOOKUP(E11,Feiertage!$A:$C,3,FALSE)),IF(OR(WEEKDAY(E11)=1,WEEKDAY(E11)=7),"",Erfassung!$B$2*SUM(Erfassung!$I2:$I2)/5),"F") ->  | F12: =IF(ISNA(VLOOKUP(F11,Feiertage!$A:$C,3,FALSE)),IF(OR(WEEKDAY(F11)=1,WEEKDAY(F11)=7),"",Erfassung!$B$2*SUM(Erfassung!$I2:$I2)/5),"F") ->  | G12: =IF(ISNA(VLOOKUP(G11,Feiertage!$A:$C,3,FALSE)),IF(OR(WEEKDAY(G11)=1,WEEKDAY(G11)=7),"",Erfassung!$B$2*SUM(Erfassung!$I2:$I2)/5),"F") -> 8.4 | H12: =IF(ISNA(VLOOKUP(H11,Feiertage!$A:$C,3,FALSE)),IF(OR(WEEKDAY(H11)=1,WEEKDAY(H11)=7),"",Erfassung!$B$2*SUM(Erfassung!$I2:$I2)/5),"F") -> 8.4 | I12: =IF(ISNA(VLOOKUP(I11,Feiertage!$A:$C,3,FALSE)),IF(OR(WEEKDAY(I11)=1,WEEKDAY(I11)=7),"",Erfassung!$B$2*SUM(Erfassung!$I2:$I2)/5),"F") -> 8.4 | J12: =IF(ISNA(VLOOKUP(J11,Feiertage!$A:$C,3,FALSE)),IF(OR(WEEKDAY(J11)=1,WEEKDAY(J11)=7),"",Erfassung!$B$2*SUM(Erfassung!$I2:$I2)/5),"F") -> F | K12: =IF(ISNA(VLOOKUP(K11,Feiertage!$A:$C,3,FALSE)),IF(OR(WEEKDAY(K11)=1,WEEKDAY(K11)=7),"",Erfassung!$B$2*SUM(Erfassung!$I2:$I2)/5),"F") -> 8.4 | L12: =IF(ISNA(VLOOKUP(L11,Feiertage!$A:$C,3,FALSE)),IF(OR(WEEKDAY(L11)=1,WEEKDAY(L11)=7),"",Erfassung!$B$2*SUM(Erfassung!$I2:$I2)/5),"F") ->  | M12: =IF(ISNA(VLOOKUP(M11,Feiertage!$A:$C,3,FALSE)),IF(OR(WEEKDAY(M11)=1,WEEKDAY(M11)=7),"",Erfassung!$B$2*SUM(Erfassung!$I2:$I2)/5),"F") ->  | N12: =IF(ISNA(VLOOKUP(N11,Feiertage!$A:$C,3,FALSE)),IF(OR(WEEKDAY(N11)=1,WEEKDAY(N11)=7),"",Erfassung!$B$2*SUM(Erfassung!$I2:$I2)/5),"F") -> 8.4 | O12: =IF(ISNA(VLOOKUP(O11,Feiertage!$A:$C,3,FALSE)),IF(OR(WEEKDAY(O11)=1,WEEKDAY(O11)=7),"",Erfassung!$B$2*SUM(Erfassung!$I2:$I2)/5),"F") -> 8.4 | P12: =IF(ISNA(VLOOKUP(P11,Feiertage!$A:$C,3,FALSE)),IF(OR(WEEKDAY(P11)=1,WEEKDAY(P11)=7),"",Erfassung!$B$2*SUM(Erfassung!$I2:$I2)/5),"F") -> 8.4 | Q12: =IF(ISNA(VLOOKUP(Q11,Feiertage!$A:$C,3,FALSE)),IF(OR(WEEKDAY(Q11)=1,WEEKDAY(Q11)=7),"",Erfassung!$B$2*SUM(Erfassung!$I2:$I2)/5),"F") -> 8.4 | R12: =IF(ISNA(VLOOKUP(R11,Feiertage!$A:$C,3,FALSE)),IF(OR(WEEKDAY(R11)=1,WEEKDAY(R11)=7),"",Erfassung!$B$2*SUM(Erfassung!$I2:$I2)/5),"F") -> 8.4 | S12: =IF(ISNA(VLOOKUP(S11,Feiertage!$A:$C,3,FALSE)),IF(OR(WEEKDAY(S11)=1,WEEKDAY(S11)=7),"",Erfassung!$B$2*SUM(Erfassung!$I2:$I2)/5),"F") ->  | T12: =IF(ISNA(VLOOKUP(T11,Feiertage!$A:$C,3,FALSE)),IF(OR(WEEKDAY(T11)=1,WEEKDAY(T11)=7),"",Erfassung!$B$2*SUM(Erfassung!$I2:$I2)/5),"F") ->  | U12: =IF(ISNA(VLOOKUP(U11,Feiertage!$A:$C,3,FALSE)),IF(OR(WEEKDAY(U11)=1,WEEKDAY(U11)=7),"",Erfassung!$B$2*SUM(Erfassung!$I2:$I2)/5),"F") -> F | V12: =IF(ISNA(VLOOKUP(V11,Feiertage!$A:$C,3,FALSE)),IF(OR(WEEKDAY(V11)=1,WEEKDAY(V11)=7),"",Erfassung!$B$2*SUM(Erfassung!$I2:$I2)/5),"F") -> 8.4 | W12: =IF(ISNA(VLOOKUP(W11,Feiertage!$A:$C,3,FALSE)),IF(OR(WEEKDAY(W11)=1,WEEKDAY(W11)=7),"",Erfassung!$B$2*SUM(Erfassung!$I2:$I2)/5),"F") -> 8.4 | X12: =IF(ISNA(VLOOKUP(X11,Feiertage!$A:$C,3,FALSE)),IF(OR(WEEKDAY(X11)=1,WEEKDAY(X11)=7),"",Erfassung!$B$2*SUM(Erfassung!$I2:$I2)/5),"F") -> 8.4 | Y12: =IF(ISNA(VLOOKUP(Y11,Feiertage!$A:$C,3,FALSE)),IF(OR(WEEKDAY(Y11)=1,WEEKDAY(Y11)=7),"",Erfassung!$B$2*SUM(Erfassung!$I2:$I2)/5),"F") -> 8.4 | Z12: =IF(ISNA(VLOOKUP(Z11,Feiertage!$A:$C,3,FALSE)),IF(OR(WEEKDAY(Z11)=1,WEEKDAY(Z11)=7),"",Erfassung!$B$2*SUM(Erfassung!$I2:$I2)/5),"F") ->  | AA12: =IF(ISNA(VLOOKUP(AA11,Feiertage!$A:$C,3,FALSE)),IF(OR(WEEKDAY(AA11)=1,WEEKDAY(AA11)=7),"",Erfassung!$B$2*SUM(Erfassung!$I2:$I2)/5),"F") ->  | AB12: =IF(ISNA(VLOOKUP(AB11,Feiertage!$A:$C,3,FALSE)),IF(OR(WEEKDAY(AB11)=1,WEEKDAY(AB11)=7),"",Erfassung!$B$2*SUM(Erfassung!$I2:$I2)/5),"F") -> 8.4 | AC12: =IF(ISNA(VLOOKUP(AC11,Feiertage!$A:$C,3,FALSE)),IF(OR(WEEKDAY(AC11)=1,WEEKDAY(AC11)=7),"",Erfassung!$B$2*SUM(Erfassung!$I2:$I2)/5),"F") -> 8.4 | AD12: =IF(ISNA(VLOOKUP(AD11,Feiertage!$A:$C,3,FALSE)),IF(OR(WEEKDAY(AD11)=1,WEEKDAY(AD11)=7),"",Erfassung!$B$2*SUM(Erfassung!$I2:$I2)/5),"F") -> 8.4 | AE12: =IF(ISNA(VLOOKUP(AE11,Feiertage!$A:$C,3,FALSE)),IF(OR(WEEKDAY(AE11)=1,WEEKDAY(AE11)=7),"",Erfassung!$B$2*SUM(Erfassung!$I2:$I2)/5),"F") -> 8.4 | AF12: =IF(ISNA(VLOOKUP(AF11,Feiertage!$A:$C,3,FALSE)),IF(OR(WEEKDAY(AF11)=1,WEEKDAY(AF11)=7),"",Erfassung!$B$2*SUM(Erfassung!$I2:$I2)/5),"F") -> 8.4 | AG12: =Erfassung!$D$2/12 -> 2.5 | AH12: =IF(AG12="","",AG12*(Erfassung!$B$2/5)*SUM(Erfassung!I$2)) -> 21 | AI12: =COUNT(B12:AF12,"<0.1") -> 21 | AJ12: =SUM(B12:AF12) -> 172.2 | AK12: Mai
B13: =AF11+1 -> 2024-06-01 | C13: =B13+1 -> 2024-06-02 | D13: 2024-06-03 | E13: 2024-06-04 | F13: 2024-06-05 | G13: 2024-06-06 | H13: 2024-06-07 | I13: 2024-06-08 | J13: 2024-06-09 | K13: 2024-06-10 | L13: 2024-06-11 | M13: 2024-06-12 | N13: 2024-06-13 | O13: 2024-06-14 | P13: 2024-06-15 | Q13: 2024-06-16 | R13: 2024-06-17 | S13: 2024-06-18 | T13: 2024-06-19 | U13: 2024-06-20 | V13: 2024-06-21 | W13: 2024-06-22 | X13: 2024-06-23 | Y13: 2024-06-24 | Z13: 2024-06-25 | AA13: 2024-06-26 | AB13: 2024-06-27 | AC13: 2024-06-28 | AD13: 2024-06-29 | AE13: 2024-06-30 | AG13: =Erfassung!$D$2/12 -> 2.5 | AH13: =IF(AG13="","",AG13*(Erfassung!$B$2/5)*SUM(Erfassung!I$2)) -> 21
A14: Juni | B14: =IF(ISNA(VLOOKUP(B13,Feiertage!$A:$C,3,FALSE)),IF(OR(WEEKDAY(B13)=1,WEEKDAY(B13)=7),"",Erfassung!$B$2*SUM(Erfassung!$J2:$J2)/5),"F") ->  | C14: =IF(ISNA(VLOOKUP(C13,Feiertage!$A:$C,3,FALSE)),IF(OR(WEEKDAY(C13)=1,WEEKDAY(C13)=7),"",Erfassung!$B$2*SUM(Erfassung!$J2:$J2)/5),"F") ->  | D14: =IF(ISNA(VLOOKUP(D13,Feiertage!$A:$C,3,FALSE)),IF(OR(WEEKDAY(D13)=1,WEEKDAY(D13)=7),"",Erfassung!$B$2*SUM(Erfassung!$J2:$J2)/5),"F") -> 8.4 | E14: =IF(ISNA(VLOOKUP(E13,Feiertage!$A:$C,3,FALSE)),IF(OR(WEEKDAY(E13)=1,WEEKDAY(E13)=7),"",Erfassung!$B$2*SUM(Erfassung!$J2:$J2)/5),"F") -> 8.4 | F14: =IF(ISNA(VLOOKUP(F13,Feiertage!$A:$C,3,FALSE)),IF(OR(WEEKDAY(F13)=1,WEEKDAY(F13)=7),"",Erfassung!$B$2*SUM(Erfassung!$J2:$J2)/5),"F") -> 8.4 | G14: =IF(ISNA(VLOOKUP(G13,Feiertage!$A:$C,3,FALSE)),IF(OR(WEEKDAY(G13)=1,WEEKDAY(G13)=7),"",Erfassung!$B$2*SUM(Erfassung!$J2:$J2)/5),"F") -> 8.4 | H14: =IF(ISNA(VLOOKUP(H13,Feiertage!$A:$C,3,FALSE)),IF(OR(WEEKDAY(H13)=1,WEEKDAY(H13)=7),"",Erfassung!$B$2*SUM(Erfassung!$J2:$J2)/5),"F") -> 8.4 | I14: =IF(ISNA(VLOOKUP(I13,Feiertage!$A:$C,3,FALSE)),IF(OR(WEEKDAY(I13)=1,WEEKDAY(I13)=7),"",Erfassung!$B$2*SUM(Erfassung!$J2:$J2)/5),"F") ->  | J14: =IF(ISNA(VLOOKUP(J13,Feiertage!$A:$C,3,FALSE)),IF(OR(WEEKDAY(J13)=1,WEEKDAY(J13)=7),"",Erfassung!$B$2*SUM(Erfassung!$J2:$J2)/5),"F") ->  | K14: =IF(ISNA(VLOOKUP(K13,Feiertage!$A:$C,3,FALSE)),IF(OR(WEEKDAY(K13)=1,WEEKDAY(K13)=7),"",Erfassung!$B$2*SUM(Erfassung!$J2:$J2)/5),"F") -> 8.4 | L14: =IF(ISNA(VLOOKUP(L13,Feiertage!$A:$C,3,FALSE)),IF(OR(WEEKDAY(L13)=1,WEEKDAY(L13)=7),"",Erfassung!$B$2*SUM(Erfassung!$J2:$J2)/5),"F") -> 8.4 | M14: =IF(ISNA(VLOOKUP(M13,Feiertage!$A:$C,3,FALSE)),IF(OR(WEEKDAY(M13)=1,WEEKDAY(M13)=7),"",Erfassung!$B$2*SUM(Erfassung!$J2:$J2)/5),"F") -> 8.4 | N14: =IF(ISNA(VLOOKUP(N13,Feiertage!$A:$C,3,FALSE)),IF(OR(WEEKDAY(N13)=1,WEEKDAY(N13)=7),"",Erfassung!$B$2*SUM(Erfassung!$J2:$J2)/5),"F") -> 8.4 | O14: =IF(ISNA(VLOOKUP(O13,Feiertage!$A:$C,3,FALSE)),IF(OR(WEEKDAY(O13)=1,WEEKDAY(O13)=7),"",Erfassung!$B$2*SUM(Erfassung!$J2:$J2)/5),"F") -> 8.4 | P14: =IF(ISNA(VLOOKUP(P13,Feiertage!$A:$C,3,FALSE)),IF(OR(WEEKDAY(P13)=1,WEEKDAY(P13)=7),"",Erfassung!$B$2*SUM(Erfassung!$J2:$J2)/5),"F") ->  | Q14: =IF(ISNA(VLOOKUP(Q13,Feiertage!$A:$C,3,FALSE)),IF(OR(WEEKDAY(Q13)=1,WEEKDAY(Q13)=7),"",Erfassung!$B$2*SUM(Erfassung!$J2:$J2)/5),"F") ->  | R14: =IF(ISNA(VLOOKUP(R13,Feiertage!$A:$C,3,FALSE)),IF(OR(WEEKDAY(R13)=1,WEEKDAY(R13)=7),"",Erfassung!$B$2*SUM(Erfassung!$J2:$J2)/5),"F") -> 8.4 | S14: =IF(ISNA(VLOOKUP(S13,Feiertage!$A:$C,3,FALSE)),IF(OR(WEEKDAY(S13)=1,WEEKDAY(S13)=7),"",Erfassung!$B$2*SUM(Erfassung!$J2:$J2)/5),"F") -> 8.4 | T14: =IF(ISNA(VLOOKUP(T13,Feiertage!$A:$C,3,FALSE)),IF(OR(WEEKDAY(T13)=1,WEEKDAY(T13)=7),"",Erfassung!$B$2*SUM(Erfassung!$J2:$J2)/5),"F") -> 8.4 | U14: =IF(ISNA(VLOOKUP(U13,Feiertage!$A:$C,3,FALSE)),IF(OR(WEEKDAY(U13)=1,WEEKDAY(U13)=7),"",Erfassung!$B$2*SUM(Erfassung!$J2:$J2)/5),"F") -> 8.4 | V14: =IF(ISNA(VLOOKUP(V13,Feiertage!$A:$C,3,FALSE)),IF(OR(WEEKDAY(V13)=1,WEEKDAY(V13)=7),"",Erfassung!$B$2*SUM(Erfassung!$J2:$J2)/5),"F") -> 8.4 | W14: =IF(ISNA(VLOOKUP(W13,Feiertage!$A:$C,3,FALSE)),IF(OR(WEEKDAY(W13)=1,WEEKDAY(W13)=7),"",Erfassung!$B$2*SUM(Erfassung!$J2:$J2)/5),"F") ->  | X14: =IF(ISNA(VLOOKUP(X13,Feiertage!$A:$C,3,FALSE)),IF(OR(WEEKDAY(X13)=1,WEEKDAY(X13)=7),"",Erfassung!$B$2*SUM(Erfassung!$J2:$J2)/5),"F") ->  | Y14: =IF(ISNA(VLOOKUP(Y13,Feiertage!$A:$C,3,FALSE)),IF(OR(WEEKDAY(Y13)=1,WEEKDAY(Y13)=7),"",Erfassung!$B$2*SUM(Erfassung!$J2:$J2)/5),"F") -> 8.4 | Z14: =IF(ISNA(VLOOKUP(Z13,Feiertage!$A:$C,3,FALSE)),IF(OR(WEEKDAY(Z13)=1,WEEKDAY(Z13)=7),"",Erfassung!$B$2*SUM(Erfassung!$J2:$J2)/5),"F") -> 8.4 | AA14: =IF(ISNA(VLOOKUP(AA13,Feiertage!$A:$C,3,FALSE)),IF(OR(WEEKDAY(AA13)=1,WEEKDAY(AA13)=7),"",Erfassung!$B$2*SUM(Erfassung!$J2:$J2)/5),"F") -> 8.4 | AB14: =IF(ISNA(VLOOKUP(AB13,Feiertage!$A:$C,3,FALSE)),IF(OR(WEEKDAY(AB13)=1,WEEKDAY(AB13)=7),"",Erfassung!$B$2*SUM(Erfassung!$J2:$J2)/5),"F") -> 8.4 | AC14: =IF(ISNA(VLOOKUP(AC13,Feiertage!$A:$C,3,FALSE)),IF(OR(WEEKDAY(AC13)=1,WEEKDAY(AC13)=7),"",Erfassung!$B$2*SUM(Erfassung!$J2:$J2)/5),"F") -> 8.4 | AD14: =IF(ISNA(VLOOKUP(AD13,Feiertage!$A:$C,3,FALSE)),IF(OR(WEEKDAY(AD13)=1,WEEKDAY(AD13)=7),"",Erfassung!$B$2*SUM(Erfassung!$J2:$J2)/5),"F") ->  | AE14: =IF(ISNA(VLOOKUP(AE13,Feiertage!$A:$C,3,FALSE)),IF(OR(WEEKDAY(AE13)=1,WEEKDAY(AE13)=7),"",Erfassung!$B$2*SUM(Erfassung!$J2:$J2)/5),"F") ->  | AF14: =IF(ISNA(VLOOKUP(AF13,Feiertage!$A:$C,3,FALSE)),IF(OR(WEEKDAY(AF13)=1,WEEKDAY(AF13)=7),"",Erfassung!$B$2*SUM(Erfassung!$J2:$J2)/5),"F") ->  | AG14: =Erfassung!$D$2/12 -> 2.5 | AH14: =IF(AG14="","",AG14*(Erfassung!$B$2/5)*SUM(Erfassung!I$2)) -> 21 | AI14: =COUNT(B14:AF14,"<0.1") -> 20 | AJ14: =SUM(B14:AF14) -> 168 | AK14: Juni
B15: =AE13+1 -> 2024-07-01 | C15: =B15+1 -> 45475 | D15: 45476 | E15: 45477 | F15: 45478 | G15: 45479 | H15: 45480 | I15: 45481 | J15: 45482 | K15: 45483 | L15: 45484 | M15: 45485 | N15: 45486 | O15: 45487 | P15: 45488 | Q15: 45489 | R15: 45490 | S15: 45491 | T15: 45492 | U15: 45493 | V15: 45494 | W15: 45495 | X15: 45496 | Y15: 45497 | Z15: 45498 | AA15: 45499 | AB15: 45500 | AC15: 45501 | AD15: 45502 | AE15: 45503 | AF15: 45504 | AG15: =Erfassung!$D$2/12 -> 2.5 | AH15: =IF(AG15="","",AG15*(Erfassung!$B$2/5)*SUM(Erfassung!E$2)) -> 21
A16: Juli | B16: =IF(ISNA(VLOOKUP(B15,Feiertage!$A:$C,3,FALSE)),IF(OR(WEEKDAY(B15)=1,WEEKDAY(B15)=7),"",Erfassung!$B$2*SUM(Erfassung!$K2:$K2)/5),"F") -> 8.4 | C16: =IF(ISNA(VLOOKUP(C15,Feiertage!$A:$C,3,FALSE)),IF(OR(WEEKDAY(C15)=1,WEEKDAY(C15)=7),"",Erfassung!$B$2*SUM(Erfassung!$K2:$K2)/5),"F") -> 8.4 | D16: =IF(ISNA(VLOOKUP(D15,Feiertage!$A:$C,3,FALSE)),IF(OR(WEEKDAY(D15)=1,WEEKDAY(D15)=7),"",Erfassung!$B$2*SUM(Erfassung!$K2:$K2)/5),"F") -> 8.4 | E16: =IF(ISNA(VLOOKUP(E15,Feiertage!$A:$C,3,FALSE)),IF(OR(WEEKDAY(E15)=1,WEEKDAY(E15)=7),"",Erfassung!$B$2*SUM(Erfassung!$K2:$K2)/5),"F") -> 8.4 | F16: =IF(ISNA(VLOOKUP(F15,Feiertage!$A:$C,3,FALSE)),IF(OR(WEEKDAY(F15)=1,WEEKDAY(F15)=7),"",Erfassung!$B$2*SUM(Erfassung!$K2:$K2)/5),"F") -> 8.4 | G16: =IF(ISNA(VLOOKUP(G15,Feiertage!$A:$C,3,FALSE)),IF(OR(WEEKDAY(G15)=1,WEEKDAY(G15)=7),"",Erfassung!$B$2*SUM(Erfassung!$K2:$K2)/5),"F") ->  | H16: =IF(ISNA(VLOOKUP(H15,Feiertage!$A:$C,3,FALSE)),IF(OR(WEEKDAY(H15)=1,WEEKDAY(H15)=7),"",Erfassung!$B$2*SUM(Erfassung!$K2:$K2)/5),"F") ->  | I16: =IF(ISNA(VLOOKUP(I15,Feiertage!$A:$C,3,FALSE)),IF(OR(WEEKDAY(I15)=1,WEEKDAY(I15)=7),"",Erfassung!$B$2*SUM(Erfassung!$K2:$K2)/5),"F") -> 8.4 | J16: =IF(ISNA(VLOOKUP(J15,Feiertage!$A:$C,3,FALSE)),IF(OR(WEEKDAY(J15)=1,WEEKDAY(J15)=7),"",Erfassung!$B$2*SUM(Erfassung!$K2:$K2)/5),"F") -> 8.4 | K16: =IF(ISNA(VLOOKUP(K15,Feiertage!$A:$C,3,FALSE)),IF(OR(WEEKDAY(K15)=1,WEEKDAY(K15)=7),"",Erfassung!$B$2*SUM(Erfassung!$K2:$K2)/5),"F") -> 8.4 | L16: =IF(ISNA(VLOOKUP(L15,Feiertage!$A:$C,3,FALSE)),IF(OR(WEEKDAY(L15)=1,WEEKDAY(L15)=7),"",Erfassung!$B$2*SUM(Erfassung!$K2:$K2)/5),"F") -> 8.4 | M16: =IF(ISNA(VLOOKUP(M15,Feiertage!$A:$C,3,FALSE)),IF(OR(WEEKDAY(M15)=1,WEEKDAY(M15)=7),"",Erfassung!$B$2*SUM(Erfassung!$K2:$K2)/5),"F") -> 8.4 | N16: =IF(ISNA(VLOOKUP(N15,Feiertage!$A:$C,3,FALSE)),IF(OR(WEEKDAY(N15)=1,WEEKDAY(N15)=7),"",Erfassung!$B$2*SUM(Erfassung!$K2:$K2)/5),"F") ->  | O16: =IF(ISNA(VLOOKUP(O15,Feiertage!$A:$C,3,FALSE)),IF(OR(WEEKDAY(O15)=1,WEEKDAY(O15)=7),"",Erfassung!$B$2*SUM(Erfassung!$K2:$K2)/5),"F") ->  | P16: =IF(ISNA(VLOOKUP(P15,Feiertage!$A:$C,3,FALSE)),IF(OR(WEEKDAY(P15)=1,WEEKDAY(P15)=7),"",Erfassung!$B$2*SUM(Erfassung!$K2:$K2)/5),"F") -> 8.4 | Q16: =IF(ISNA(VLOOKUP(Q15,Feiertage!$A:$C,3,FALSE)),IF(OR(WEEKDAY(Q15)=1,WEEKDAY(Q15)=7),"",Erfassung!$B$2*SUM(Erfassung!$K2:$K2)/5),"F") -> 8.4 | R16: =IF(ISNA(VLOOKUP(R15,Feiertage!$A:$C,3,FALSE)),IF(OR(WEEKDAY(R15)=1,WEEKDAY(R15)=7),"",Erfassung!$B$2*SUM(Erfassung!$K2:$K2)/5),"F") -> 8.4 | S16: =IF(ISNA(VLOOKUP(S15,Feiertage!$A:$C,3,FALSE)),IF(OR(WEEKDAY(S15)=1,WEEKDAY(S15)=7),"",Erfassung!$B$2*SUM(Erfassung!$K2:$K2)/5),"F") -> 8.4 | T16: =IF(ISNA(VLOOKUP(T15,Feiertage!$A:$C,3,FALSE)),IF(OR(WEEKDAY(T15)=1,WEEKDAY(T15)=7),"",Erfassung!$B$2*SUM(Erfassung!$K2:$K2)/5),"F") -> 8.4 | U16: =IF(ISNA(VLOOKUP(U15,Feiertage!$A:$C,3,FALSE)),IF(OR(WEEKDAY(U15)=1,WEEKDAY(U15)=7),"",Erfassung!$B$2*SUM(Erfassung!$K2:$K2)/5),"F") ->  | V16: =IF(ISNA(VLOOKUP(V15,Feiertage!$A:$C,3,FALSE)),IF(OR(WEEKDAY(V15)=1,WEEKDAY(V15)=7),"",Erfassung!$B$2*SUM(Erfassung!$K2:$K2)/5),"F") ->  | W16: =IF(ISNA(VLOOKUP(W15,Feiertage!$A:$C,3,FALSE)),IF(OR(WEEKDAY(W15)=1,WEEKDAY(W15)=7),"",Erfassung!$B$2*SUM(Erfassung!$K2:$K2)/5),"F") -> 8.4 | X16: =IF(ISNA(VLOOKUP(X15,Feiertage!$A:$C,3,FALSE)),IF(OR(WEEKDAY(X15)=1,WEEKDAY(X15)=7),"",Erfassung!$B$2*SUM(Erfassung!$K2:$K2)/5),"F") -> 8.4 | Y16: =IF(ISNA(VLOOKUP(Y15,Feiertage!$A:$C,3,FALSE)),IF(OR(WEEKDAY(Y15)=1,WEEKDAY(Y15)=7),"",Erfassung!$B$2*SUM(Erfassung!$K2:$K2)/5),"F") -> 8.4 | Z16: =IF(ISNA(VLOOKUP(Z15,Feiertage!$A:$C,3,FALSE)),IF(OR(WEEKDAY(Z15)=1,WEEKDAY(Z15)=7),"",Erfassung!$B$2*SUM(Erfassung!$K2:$K2)/5),"F") -> 8.4 | AA16: =IF(ISNA(VLOOKUP(AA15,Feiertage!$A:$C,3,FALSE)),IF(OR(WEEKDAY(AA15)=1,WEEKDAY(AA15)=7),"",Erfassung!$B$2*SUM(Erfassung!$K2:$K2)/5),"F") -> 8.4 | AB16: =IF(ISNA(VLOOKUP(AB15,Feiertage!$A:$C,3,FALSE)),IF(OR(WEEKDAY(AB15)=1,WEEKDAY(AB15)=7),"",Erfassung!$B$2*SUM(Erfassung!$K2:$K2)/5),"F") ->  | AC16: =IF(ISNA(VLOOKUP(AC15,Feiertage!$A:$C,3,FALSE)),IF(OR(WEEKDAY(AC15)=1,WEEKDAY(AC15)=7),"",Erfassung!$B$2*SUM(Erfassung!$K2:$K2)/5),"F") ->  | AD16: =IF(ISNA(VLOOKUP(AD15,Feiertage!$A:$C,3,FALSE)),IF(OR(WEEKDAY(AD15)=1,WEEKDAY(AD15)=7),"",Erfassung!$B$2*SUM(Erfassung!$K2:$K2)/5),"F") -> 8.4 | AE16: =IF(ISNA(VLOOKUP(AE15,Feiertage!$A:$C,3,FALSE)),IF(OR(WEEKDAY(AE15)=1,WEEKDAY(AE15)=7),"",Erfassung!$B$2*SUM(Erfassung!$K2:$K2)/5),"F") -> 8.4 | AF16: =IF(ISNA(VLOOKUP(AF15,Feiertage!$A:$C,3,FALSE)),IF(OR(WEEKDAY(AF15)=1,WEEKDAY(AF15)=7),"",Erfassung!$B$2*SUM(Erfassung!$K2:$K2)/5),"F") -> 8.4 | AG16: =Erfassung!$D$2/12 -> 2.5 | AH16: =IF(AG16="","",AG16*(Erfassung!$B$2/5)*SUM(Erfassung!K$2)) -> 21 | AI16: =COUNT(B16:AF16,"<0.1") -> 23 | AJ16: =SUM(B16:AF16) -> 193.2 | AK16: Juli
B17: =AF15+1 -> 2024-08-01 | C17: =B17+1 -> 45506 | D17: 45507 | E17: 45508 | F17: 45509 | G17: 45510 | H17: 45511 | I17: 45512 | J17: 45513 | K17: 45514 | L17: 45515 | M17: 45516 | N17: 45517 | O17: 45518 | P17: 45519 | Q17: 45520 | R17: 45521 | S17: 45522 | T17: 45523 | U17: 45524 | V17: 45525 | W17: 45526 | X17: 45527 | Y17: 45528 | Z17: 45529 | AA17: 45530 | AB17: 45531 | AC17: 45532 | AD17: 45533 | AE17: 45534 | AF17: 45535 | AG17: =Erfassung!$D$2/12 -> 2.5 | AH17: =IF(AG17="","",AG17*(Erfassung!$B$2/5)*SUM(Erfassung!E$2)) -> 21
A18: August | B18: =IF(ISNA(VLOOKUP(B17,Feiertage!$A:$C,3,FALSE)),IF(OR(WEEKDAY(B17)=1,WEEKDAY(B17)=7),"",Erfassung!$B$2*SUM(Erfassung!$L2:$L2)/5),"F") -> F | C18: =IF(ISNA(VLOOKUP(C17,Feiertage!$A:$C,3,FALSE)),IF(OR(WEEKDAY(C17)=1,WEEKDAY(C17)=7),"",Erfassung!$B$2*SUM(Erfassung!$L2:$L2)/5),"F") -> 8.4 | D18: =IF(ISNA(VLOOKUP(D17,Feiertage!$A:$C,3,FALSE)),IF(OR(WEEKDAY(D17)=1,WEEKDAY(D17)=7),"",Erfassung!$B$2*SUM(Erfassung!$L2:$L2)/5),"F") ->  | E18: =IF(ISNA(VLOOKUP(E17,Feiertage!$A:$C,3,FALSE)),IF(OR(WEEKDAY(E17)=1,WEEKDAY(E17)=7),"",Erfassung!$B$2*SUM(Erfassung!$L2:$L2)/5),"F") ->  | F18: =IF(ISNA(VLOOKUP(F17,Feiertage!$A:$C,3,FALSE)),IF(OR(WEEKDAY(F17)=1,WEEKDAY(F17)=7),"",Erfassung!$B$2*SUM(Erfassung!$L2:$L2)/5),"F") -> 8.4 | G18: =IF(ISNA(VLOOKUP(G17,Feiertage!$A:$C,3,FALSE)),IF(OR(WEEKDAY(G17)=1,WEEKDAY(G17)=7),"",Erfassung!$B$2*SUM(Erfassung!$L2:$L2)/5),"F") -> 8.4 | H18: =IF(ISNA(VLOOKUP(H17,Feiertage!$A:$C,3,FALSE)),IF(OR(WEEKDAY(H17)=1,WEEKDAY(H17)=7),"",Erfassung!$B$2*SUM(Erfassung!$L2:$L2)/5),"F") -> 8.4 | I18: =IF(ISNA(VLOOKUP(I17,Feiertage!$A:$C,3,FALSE)),IF(OR(WEEKDAY(I17)=1,WEEKDAY(I17)=7),"",Erfassung!$B$2*SUM(Erfassung!$L2:$L2)/5),"F") -> 8.4 | J18: =IF(ISNA(VLOOKUP(J17,Feiertage!$A:$C,3,FALSE)),IF(OR(WEEKDAY(J17)=1,WEEKDAY(J17)=7),"",Erfassung!$B$2*SUM(Erfassung!$L2:$L2)/5),"F") -> 8.4 | K18: =IF(ISNA(VLOOKUP(K17,Feiertage!$A:$C,3,FALSE)),IF(OR(WEEKDAY(K17)=1,WEEKDAY(K17)=7),"",Erfassung!$B$2*SUM(Erfassung!$L2:$L2)/5),"F") ->  | L18: =IF(ISNA(VLOOKUP(L17,Feiertage!$A:$C,3,FALSE)),IF(OR(WEEKDAY(L17)=1,WEEKDAY(L17)=7),"",Erfassung!$B$2*SUM(Erfassung!$L2:$L2)/5),"F") ->  | M18: =IF(ISNA(VLOOKUP(M17,Feiertage!$A:$C,3,FALSE)),IF(OR(WEEKDAY(M17)=1,WEEKDAY(M17)=7),"",Erfassung!$B$2*SUM(Erfassung!$L2:$L2)/5),"F") -> 8.4 | N18: =IF(ISNA(VLOOKUP(N17,Feiertage!$A:$C,3,FALSE)),IF(OR(WEEKDAY(N17)=1,WEEKDAY(N17)=7),"",Erfassung!$B$2*SUM(Erfassung!$L2:$L2)/5),"F") -> 8.4 | O18: =IF(ISNA(VLOOKUP(O17,Feiertage!$A:$C,3,FALSE)),IF(OR(WEEKDAY(O17)=1,WEEKDAY(O17)=7),"",Erfassung!$B$2*SUM(Erfassung!$L2:$L2)/5),"F") -> 8.4 | P18: =IF(ISNA(VLOOKUP(P17,Feiertage!$A:$C,3,FALSE)),IF(OR(WEEKDAY(P17)=1,WEEKDAY(P17)=7),"",Erfassung!$B$2*SUM(Erfassung!$L2:$L2)/5),"F") -> 8.4 | Q18: =IF(ISNA(VLOOKUP(Q17,Feiertage!$A:$C,3,FALSE)),IF(OR(WEEKDAY(Q17)=1,WEEKDAY(Q17)=7),"",Erfassung!$B$2*SUM(Erfassung!$L2:$L2)/5),"F") -> 8.4 | R18: =IF(ISNA(VLOOKUP(R17,Feiertage!$A:$C,3,FALSE)),IF(OR(WEEKDAY(R17)=1,WEEKDAY(R17)=7),"",Erfassung!$B$2*SUM(Erfassung!$L2:$L2)/5),"F") ->  | S18: =IF(ISNA(VLOOKUP(S17,Feiertage!$A:$C,3,FALSE)),IF(OR(WEEKDAY(S17)=1,WEEKDAY(S17)=7),"",Erfassung!$B$2*SUM(Erfassung!$L2:$L2)/5),"F") ->  | T18: =IF(ISNA(VLOOKUP(T17,Feiertage!$A:$C,3,FALSE)),IF(OR(WEEKDAY(T17)=1,WEEKDAY(T17)=7),"",Erfassung!$B$2*SUM(Erfassung!$L2:$L2)/5),"F") -> 8.4 | U18: =IF(ISNA(VLOOKUP(U17,Feiertage!$A:$C,3,FALSE)),IF(OR(WEEKDAY(U17)=1,WEEKDAY(U17)=7),"",Erfassung!$B$2*SUM(Erfassung!$L2:$L2)/5),"F") -> 8.4 | V18: =IF(ISNA(VLOOKUP(V17,Feiertage!$A:$C,3,FALSE)),IF(OR(WEEKDAY(V17)=1,WEEKDAY(V17)=7),"",Erfassung!$B$2*SUM(Erfassung!$L2:$L2)/5),"F") -> 8.4 | W18: =IF(ISNA(VLOOKUP(W17,Feiertage!$A:$C,3,FALSE)),IF(OR(WEEKDAY(W17)=1,WEEKDAY(W17)=7),"",Erfassung!$B$2*SUM(Erfassung!$L2:$L2)/5),"F") -> 8.4 | X18: =IF(ISNA(VLOOKUP(X17,Feiertage!$A:$C,3,FALSE)),IF(OR(WEEKDAY(X17)=1,WEEKDAY(X17)=7),"",Erfassung!$B$2*SUM(Erfassung!$L2:$L2)/5),"F") -> 8.4 | Y18: =IF(ISNA(VLOOKUP(Y17,Feiertage!$A:$C,3,FALSE)),IF(OR(WEEKDAY(Y17)=1,WEEKDAY(Y17)=7),"",Erfassung!$B$2*SUM(Erfassung!$L2:$L2)/5),"F") ->  | Z18: =IF(ISNA(VLOOKUP(Z17,Feiertage!$A:$C,3,FALSE)),IF(OR(WEEKDAY(Z17)=1,WEEKDAY(Z17)=7),"",Erfassung!$B$2*SUM(Erfassung!$L2:$L2)/5),"F") ->  | AA18: =IF(ISNA(VLOOKUP(AA17,Feiertage!$A:$C,3,FALSE)),IF(OR(WEEKDAY(AA17)=1,WEEKDAY(AA17)=7),"",Erfassung!$B$2*SUM(Erfassung!$L2:$L2)/5),"F") -> 8.4 | AB18: =IF(ISNA(VLOOKUP(AB17,Feiertage!$A:$C,3,FALSE)),IF(OR(WEEKDAY(AB17)=1,WEEKDAY(AB17)=7),"",Erfassung!$B$2*SUM(Erfassung!$L2:$L2)/5),"F") -> 8.4 | AC18: =IF(ISNA(VLOOKUP(AC17,Feiertage!$A:$C,3,FALSE)),IF(OR(WEEKDAY(AC17)=1,WEEKDAY(AC17)=7),"",Erfassung!$B$2*SUM(Erfassung!$L2:$L2)/5),"F") -> 8.4 | AD18: =IF(ISNA(VLOOKUP(AD17,Feiertage!$A:$C,3,FALSE)),IF(OR(WEEKDAY(AD17)=1,WEEKDAY(AD17)=7),"",Erfassung!$B$2*SUM(Erfassung!$L2:$L2)/5),"F") -> 8.4 | AE18: =IF(ISNA(VLOOKUP(AE17,Feiertage!$A:$C,3,FALSE)),IF(OR(WEEKDAY(AE17)=1,WEEKDAY(AE17)=7),"",Erfassung!$B$2*SUM(Erfassung!$L2:$L2)/5),"F") -> 8.4 | AF18: =IF(ISNA(VLOOKUP(AF17,Feiertage!$A:$C,3,FALSE)),IF(OR(WEEKDAY(AF17)=1,WEEKDAY(AF17)=7),"",Erfassung!$B$2*SUM(Erfassung!$L2:$L2)/5),"F") ->  | AG18: =Erfassung!$D$2/12 -> 2.5 | AH18: =IF(AG18="","",AG18*(Erfassung!$B$2/5)*SUM(Erfassung!L$2)) -> 21 | AI18: =COUNT(B18:AF18,"<0.1") -> 21 | AJ18: =SUM(B18:AF18) -> 176.4 | AK18: August
B19: =AF17+1 -> 45536 | C19: =B19+1 -> 45537 | D19: 45538 | E19: 45539 | F19: 45540 | G19: 45541 | H19: 45542 | I19: 45543 | J19: 45544 | K19: 45545 | L19: 45546 | M19: 45547 | N19: 45548 | O19: 45549 | P19: 45550 | Q19: 45551 | R19: 45552 | S19: 45553 | T19: 45554 | U19: 45555 | V19: 45556 | W19: 45557 | X19: 45558 | Y19: 45559 | Z19: 45560 | AA19: 45561 | AB19: 45562 | AC19: 45563 | AD19: 45564 | AE19: 45565 | AG19: =Erfassung!$D$2/12 -> 2.5 | AH19: =IF(AG19="","",AG19*(Erfassung!$B$2/5)*SUM(Erfassung!E$2)) -> 21
A20: September | B20: =IF(ISNA(VLOOKUP(B19,Feiertage!$A:$C,3,FALSE)),IF(OR(WEEKDAY(B19)=1,WEEKDAY(B19)=7),"",Erfassung!$B$2*SUM(Erfassung!$M2:$M2)/5),"F") ->  | C20: =IF(ISNA(VLOOKUP(C19,Feiertage!$A:$C,3,FALSE)),IF(OR(WEEKDAY(C19)=1,WEEKDAY(C19)=7),"",Erfassung!$B$2*SUM(Erfassung!$M2:$M2)/5),"F") -> 8.4 | D20: =IF(ISNA(VLOOKUP(D19,Feiertage!$A:$C,3,FALSE)),IF(OR(WEEKDAY(D19)=1,WEEKDAY(D19)=7),"",Erfassung!$B$2*SUM(Erfassung!$M2:$M2)/5),"F") -> 8.4 | E20: =IF(ISNA(VLOOKUP(E19,Feiertage!$A:$C,3,FALSE)),IF(OR(WEEKDAY(E19)=1,WEEKDAY(E19)=7),"",Erfassung!$B$2*SUM(Erfassung!$M2:$M2)/5),"F") -> 8.4 | F20: =IF(ISNA(VLOOKUP(F19,Feiertage!$A:$C,3,FALSE)),IF(OR(WEEKDAY(F19)=1,WEEKDAY(F19)=7),"",Erfassung!$B$2*SUM(Erfassung!$M2:$M2)/5),"F") -> 8.4 | G20: =IF(ISNA(VLOOKUP(G19,Feiertage!$A:$C,3,FALSE)),IF(OR(WEEKDAY(G19)=1,WEEKDAY(G19)=7),"",Erfassung!$B$2*SUM(Erfassung!$M2:$M2)/5),"F") -> 8.4 | H20: =IF(ISNA(VLOOKUP(H19,Feiertage!$A:$C,3,FALSE)),IF(OR(WEEKDAY(H19)=1,WEEKDAY(H19)=7),"",Erfassung!$B$2*SUM(Erfassung!$M2:$M2)/5),"F") ->  | I20: =IF(ISNA(VLOOKUP(I19,Feiertage!$A:$C,3,FALSE)),IF(OR(WEEKDAY(I19)=1,WEEKDAY(I19)=7),"",Erfassung!$B$2*SUM(Erfassung!$M2:$M2)/5),"F") ->  | J20: =IF(ISNA(VLOOKUP(J19,Feiertage!$A:$C,3,FALSE)),IF(OR(WEEKDAY(J19)=1,WEEKDAY(J19)=7),"",Erfassung!$B$2*SUM(Erfassung!$M2:$M2)/5),"F") -> 8.4 | K20: =IF(ISNA(VLOOKUP(K19,Feiertage!$A:$C,3,FALSE)),IF(OR(WEEKDAY(K19)=1,WEEKDAY(K19)=7),"",Erfassung!$B$2*SUM(Erfassung!$M2:$M2)/5),"F") -> 8.4 | L20: =IF(ISNA(VLOOKUP(L19,Feiertage!$A:$C,3,FALSE)),IF(OR(WEEKDAY(L19)=1,WEEKDAY(L19)=7),"",Erfassung!$B$2*SUM(Erfassung!$M2:$M2)/5),"F") -> 8.4 | M20: =IF(ISNA(VLOOKUP(M19,Feiertage!$A:$C,3,FALSE)),IF(OR(WEEKDAY(M19)=1,WEEKDAY(M19)=7),"",Erfassung!$B$2*SUM(Erfassung!$M2:$M2)/5),"F") -> 8.4 | N20: =IF(ISNA(VLOOKUP(N19,Feiertage!$A:$C,3,FALSE)),IF(OR(WEEKDAY(N19)=1,WEEKDAY(N19)=7),"",Erfassung!$B$2*SUM(Erfassung!$M2:$M2)/5),"F") -> 8.4 | O20: =IF(ISNA(VLOOKUP(O19,Feiertage!$A:$C,3,FALSE)),IF(OR(WEEKDAY(O19)=1,WEEKDAY(O19)=7),"",Erfassung!$B$2*SUM(Erfassung!$M2:$M2)/5),"F") ->  | P20: =IF(ISNA(VLOOKUP(P19,Feiertage!$A:$C,3,FALSE)),IF(OR(WEEKDAY(P19)=1,WEEKDAY(P19)=7),"",Erfassung!$B$2*SUM(Erfassung!$M2:$M2)/5),"F") ->  | Q20: =IF(ISNA(VLOOKUP(Q19,Feiertage!$A:$C,3,FALSE)),IF(OR(WEEKDAY(Q19)=1,WEEKDAY(Q19)=7),"",Erfassung!$B$2*SUM(Erfassung!$M2:$M2)/5),"F") -> 8.4 | R20: =IF(ISNA(VLOOKUP(R19,Feiertage!$A:$C,3,FALSE)),IF(OR(WEEKDAY(R19)=1,WEEKDAY(R19)=7),"",Erfassung!$B$2*SUM(Erfassung!$M2:$M2)/5),"F") -> 8.4 | S20: =IF(ISNA(VLOOKUP(S19,Feiertage!$A:$C,3,FALSE)),IF(OR(WEEKDAY(S19)=1,WEEKDAY(S19)=7),"",Erfassung!$B$2*SUM(Erfassung!$M2:$M2)/5),"F") -> 8.4 | T20: =IF(ISNA(VLOOKUP(T19,Feiertage!$A:$C,3,FALSE)),IF(OR(WEEKDAY(T19)=1,WEEKDAY(T19)=7),"",Erfassung!$B$2*SUM(Erfassung!$M2:$M2)/5),"F") -> 8.4 | U20: =IF(ISNA(VLOOKUP(U19,Feiertage!$A:$C,3,FALSE)),IF(OR(WEEKDAY(U19)=1,WEEKDAY(U19)=7),"",Erfassung!$B$2*SUM(Erfassung!$M2:$M2)/5),"F") -> 8.4 | V20: =IF(ISNA(VLOOKUP(V19,Feiertage!$A:$C,3,FALSE)),IF(OR(WEEKDAY(V19)=1,WEEKDAY(V19)=7),"",Erfassung!$B$2*SUM(Erfassung!$M2:$M2)/5),"F") ->  | W20: =IF(ISNA(VLOOKUP(W19,Feiertage!$A:$C,3,FALSE)),IF(OR(WEEKDAY(W19)=1,WEEKDAY(W19)=7),"",Erfassung!$B$2*SUM(Erfassung!$M2:$M2)/5),"F") ->  | X20: =IF(ISNA(VLOOKUP(X19,Feiertage!$A:$C,3,FALSE)),IF(OR(WEEKDAY(X19)=1,WEEKDAY(X19)=7),"",Erfassung!$B$2*SUM(Erfassung!$M2:$M2)/5),"F") -> 8.4 | Y20: =IF(ISNA(VLOOKUP(Y19,Feiertage!$A:$C,3,FALSE)),IF(OR(WEEKDAY(Y19)=1,WEEKDAY(Y19)=7),"",Erfassung!$B$2*SUM(Erfassung!$M2:$M2)/5),"F") -> 8.4 | Z20: =IF(ISNA(VLOOKUP(Z19,Feiertage!$A:$C,3,FALSE)),IF(OR(WEEKDAY(Z19)=1,WEEKDAY(Z19)=7),"",Erfassung!$B$2*SUM(Erfassung!$M2:$M2)/5),"F") -> 8.4 | AA20: =IF(ISNA(VLOOKUP(AA19,Feiertage!$A:$C,3,FALSE)),IF(OR(WEEKDAY(AA19)=1,WEEKDAY(AA19)=7),"",Erfassung!$B$2*SUM(Erfassung!$M2:$M2)/5),"F") -> 8.4 | AB20: =IF(ISNA(VLOOKUP(AB19,Feiertage!$A:$C,3,FALSE)),IF(OR(WEEKDAY(AB19)=1,WEEKDAY(AB19)=7),"",Erfassung!$B$2*SUM(Erfassung!$M2:$M2)/5),"F") -> 8.4 | AC20: =IF(ISNA(VLOOKUP(AC19,Feiertage!$A:$C,3,FALSE)),IF(OR(WEEKDAY(AC19)=1,WEEKDAY(AC19)=7),"",Erfassung!$B$2*SUM(Erfassung!$M2:$M2)/5),"F") ->  | AD20: =IF(ISNA(VLOOKUP(AD19,Feiertage!$A:$C,3,FALSE)),IF(OR(WEEKDAY(AD19)=1,WEEKDAY(AD19)=7),"",Erfassung!$B$2*SUM(Erfassung!$M2:$M2)/5),"F") ->  | AE20: =IF(ISNA(VLOOKUP(AE19,Feiertage!$A:$C,3,FALSE)),IF(OR(WEEKDAY(AE19)=1,WEEKDAY(AE19)=7),"",Erfassung!$B$2*SUM(Erfassung!$M2:$M2)/5),"F") -> 8.4 | AF20: =IF(ISNA(VLOOKUP(AF19,Feiertage!$A:$C,3,FALSE)),IF(OR(WEEKDAY(AF19)=1,WEEKDAY(AF19)=7),"",Erfassung!$B$2*SUM(Erfassung!$M2:$M2)/5),"F") ->  | AG20: =Erfassung!$D$2/12 -> 2.5 | AH20: =IF(AG20="","",AG20*(Erfassung!$B$2/5)*SUM(Erfassung!M$2)) -> 21 | AI20: =COUNT(B20:AF20,"<0.1") -> 21 | AJ20: =SUM(B20:AF20) -> 176.4 | AK20: September
B21: =AE19+1 -> 2024-10-01 | C21: =B21+1 -> 2024-10-02 | D21: 2024-10-03 | E21: 2024-10-04 | F21: 2024-10-05 | G21: 2024-10-06 | H21: 2024-10-07 | I21: 2024-10-08 | J21: 2024-10-09 | K21: 2024-10-10 | L21: 2024-10-11 | M21: 2024-10-12 | N21: 2024-10-13 | O21: 2024-10-14 | P21: 2024-10-15 | Q21: 2024-10-16 | R21: 2024-10-17 | S21: 2024-10-18 | T21: 2024-10-19 | U21: 2024-10-20 | V21: 2024-10-21 | W21: 2024-10-22 | X21: 2024-10-23 | Y21: 2024-10-24 | Z21: 2024-10-25 | AA21: 2024-10-26 | AB21: 2024-10-27 | AC21: 2024-10-28 | AD21: 2024-10-29 | AE21: 2024-10-30 | AF21: 2024-10-31 | AG21: =Erfassung!$D$2/12 -> 2.5 | AH21: =IF(AG21="","",AG21*(Erfassung!$B$2/5)*SUM(Erfassung!E$2)) -> 21
A22: Oktober | B22: =IF(ISNA(VLOOKUP(B21,Feiertage!$A:$C,3,FALSE)),IF(OR(WEEKDAY(B21)=1,WEEKDAY(B21)=7),"",Erfassung!$B$2*SUM(Erfassung!$N2:$N2)/5),"F") -> 8.4 | C22: =IF(ISNA(VLOOKUP(C21,Feiertage!$A:$C,3,FALSE)),IF(OR(WEEKDAY(C21)=1,WEEKDAY(C21)=7),"",Erfassung!$B$2*SUM(Erfassung!$N2:$N2)/5),"F") -> 8.4 | D22: =IF(ISNA(VLOOKUP(D21,Feiertage!$A:$C,3,FALSE)),IF(OR(WEEKDAY(D21)=1,WEEKDAY(D21)=7),"",Erfassung!$B$2*SUM(Erfassung!$N2:$N2)/5),"F") -> 8.4 | E22: =IF(ISNA(VLOOKUP(E21,Feiertage!$A:$C,3,FALSE)),IF(OR(WEEKDAY(E21)=1,WEEKDAY(E21)=7),"",Erfassung!$B$2*SUM(Erfassung!$N2:$N2)/5),"F") -> 8.4 | F22: =IF(ISNA(VLOOKUP(F21,Feiertage!$A:$C,3,FALSE)),IF(OR(WEEKDAY(F21)=1,WEEKDAY(F21)=7),"",Erfassung!$B$2*SUM(Erfassung!$N2:$N2)/5),"F") ->  | G22: =IF(ISNA(VLOOKUP(G21,Feiertage!$A:$C,3,FALSE)),IF(OR(WEEKDAY(G21)=1,WEEKDAY(G21)=7),"",Erfassung!$B$2*SUM(Erfassung!$N2:$N2)/5),"F") ->  | H22: =IF(ISNA(VLOOKUP(H21,Feiertage!$A:$C,3,FALSE)),IF(OR(WEEKDAY(H21)=1,WEEKDAY(H21)=7),"",Erfassung!$B$2*SUM(Erfassung!$N2:$N2)/5),"F") -> 8.4 | I22: =IF(ISNA(VLOOKUP(I21,Feiertage!$A:$C,3,FALSE)),IF(OR(WEEKDAY(I21)=1,WEEKDAY(I21)=7),"",Erfassung!$B$2*SUM(Erfassung!$N2:$N2)/5),"F") -> 8.4 | J22: =IF(ISNA(VLOOKUP(J21,Feiertage!$A:$C,3,FALSE)),IF(OR(WEEKDAY(J21)=1,WEEKDAY(J21)=7),"",Erfassung!$B$2*SUM(Erfassung!$N2:$N2)/5),"F") -> 8.4 | K22: =IF(ISNA(VLOOKUP(K21,Feiertage!$A:$C,3,FALSE)),IF(OR(WEEKDAY(K21)=1,WEEKDAY(K21)=7),"",Erfassung!$B$2*SUM(Erfassung!$N2:$N2)/5),"F") -> 8.4 | L22: =IF(ISNA(VLOOKUP(L21,Feiertage!$A:$C,3,FALSE)),IF(OR(WEEKDAY(L21)=1,WEEKDAY(L21)=7),"",Erfassung!$B$2*SUM(Erfassung!$N2:$N2)/5),"F") -> 8.4 | M22: =IF(ISNA(VLOOKUP(M21,Feiertage!$A:$C,3,FALSE)),IF(OR(WEEKDAY(M21)=1,WEEKDAY(M21)=7),"",Erfassung!$B$2*SUM(Erfassung!$N2:$N2)/5),"F") ->  | N22: =IF(ISNA(VLOOKUP(N21,Feiertage!$A:$C,3,FALSE)),IF(OR(WEEKDAY(N21)=1,WEEKDAY(N21)=7),"",Erfassung!$B$2*SUM(Erfassung!$N2:$N2)/5),"F") ->  | O22: =IF(ISNA(VLOOKUP(O21,Feiertage!$A:$C,3,FALSE)),IF(OR(WEEKDAY(O21)=1,WEEKDAY(O21)=7),"",Erfassung!$B$2*SUM(Erfassung!$N2:$N2)/5),"F") -> 8.4 | P22: =IF(ISNA(VLOOKUP(P21,Feiertage!$A:$C,3,FALSE)),IF(OR(WEEKDAY(P21)=1,WEEKDAY(P21)=7),"",Erfassung!$B$2*SUM(Erfassung!$N2:$N2)/5),"F") -> 8.4 | Q22: =IF(ISNA(VLOOKUP(Q21,Feiertage!$A:$C,3,FALSE)),IF(OR(WEEKDAY(Q21)=1,WEEKDAY(Q21)=7),"",Erfassung!$B$2*SUM(Erfassung!$N2:$N2)/5),"F") -> 8.4 | R22: =IF(ISNA(VLOOKUP(R21,Feiertage!$A:$C,3,FALSE)),IF(OR(WEEKDAY(R21)=1,WEEKDAY(R21)=7),"",Erfassung!$B$2*SUM(Erfassung!$N2:$N2)/5),"F") -> 8.4 | S22: =IF(ISNA(VLOOKUP(S21,Feiertage!$A:$C,3,FALSE)),IF(OR(WEEKDAY(S21)=1,WEEKDAY(S21)=7),"",Erfassung!$B$2*SUM(Erfassung!$N2:$N2)/5),"F") -> 8.4 | T22: =IF(ISNA(VLOOKUP(T21,Feiertage!$A:$C,3,FALSE)),IF(OR(WEEKDAY(T21)=1,WEEKDAY(T21)=7),"",Erfassung!$B$2*SUM(Erfassung!$N2:$N2)/5),"F") ->  | U22: =IF(ISNA(VLOOKUP(U21,Feiertage!$A:$C,3,FALSE)),IF(OR(WEEKDAY(U21)=1,WEEKDAY(U21)=7),"",Erfassung!$B$2*SUM(Erfassung!$N2:$N2)/5),"F") ->  | V22: =IF(ISNA(VLOOKUP(V21,Feiertage!$A:$C,3,FALSE)),IF(OR(WEEKDAY(V21)=1,WEEKDAY(V21)=7),"",Erfassung!$B$2*SUM(Erfassung!$N2:$N2)/5),"F") -> 8.4 | W22: =IF(ISNA(VLOOKUP(W21,Feiertage!$A:$C,3,FALSE)),IF(OR(WEEKDAY(W21)=1,WEEKDAY(W21)=7),"",Erfassung!$B$2*SUM(Erfassung!$N2:$N2)/5),"F") -> 8.4 | X22: =IF(ISNA(VLOOKUP(X21,Feiertage!$A:$C,3,FALSE)),IF(OR(WEEKDAY(X21)=1,WEEKDAY(X21)=7),"",Erfassung!$B$2*SUM(Erfassung!$N2:$N2)/5),"F") -> 8.4 | Y22: =IF(ISNA(VLOOKUP(Y21,Feiertage!$A:$C,3,FALSE)),IF(OR(WEEKDAY(Y21)=1,WEEKDAY(Y21)=7),"",Erfassung!$B$2*SUM(Erfassung!$N2:$N2)/5),"F") -> 8.4 | Z22: =IF(ISNA(VLOOKUP(Z21,Feiertage!$A:$C,3,FALSE)),IF(OR(WEEKDAY(Z21)=1,WEEKDAY(Z21)=7),"",Erfassung!$B$2*SUM(Erfassung!$N2:$N2)/5),"F") -> 8.4 | AA22: =IF(ISNA(VLOOKUP(AA21,Feiertage!$A:$C,3,FALSE)),IF(OR(WEEKDAY(AA21)=1,WEEKDAY(AA21)=7),"",Erfassung!$B$2*SUM(Erfassung!$N2:$N2)/5),"F") ->  | AB22: =IF(ISNA(VLOOKUP(AB21,Feiertage!$A:$C,3,FALSE)),IF(OR(WEEKDAY(AB21)=1,WEEKDAY(AB21)=7),"",Erfassung!$B$2*SUM(Erfassung!$N2:$N2)/5),"F") ->  | AC22: =IF(ISNA(VLOOKUP(AC21,Feiertage!$A:$C,3,FALSE)),IF(OR(WEEKDAY(AC21)=1,WEEKDAY(AC21)=7),"",Erfassung!$B$2*SUM(Erfassung!$N2:$N2)/5),"F") -> 8.4 | AD22: =IF(ISNA(VLOOKUP(AD21,Feiertage!$A:$C,3,FALSE)),IF(OR(WEEKDAY(AD21)=1,WEEKDAY(AD21)=7),"",Erfassung!$B$2*SUM(Erfassung!$N2:$N2)/5),"F") -> 8.4 | AE22: =IF(ISNA(VLOOKUP(AE21,Feiertage!$A:$C,3,FALSE)),IF(OR(WEEKDAY(AE21)=1,WEEKDAY(AE21)=7),"",Erfassung!$B$2*SUM(Erfassung!$N2:$N2)/5),"F") -> 8.4 | AF22: =IF(ISNA(VLOOKUP(AF21,Feiertage!$A:$C,3,FALSE)),IF(OR(WEEKDAY(AF21)=1,WEEKDAY(AF21)=7),"",Erfassung!$B$2*SUM(Erfassung!$N2:$N2)/5),"F") -> 8.4 | AG22: =Erfassung!$D$2/12 -> 2.5 | AH22: =IF(AG22="","",AG22*(Erfassung!$B$2/5)*SUM(Erfassung!N$2)) -> 21 | AI22: =COUNT(B22:AF22,"<0.1") -> 23 | AJ22: =SUM(B22:AF22) -> 193.2 | AK22: Oktober
B23: =AF21+1 -> 2024-11-01 | C23: =B23+1 -> 45598 | D23: 45599 | E23: 45600 | F23: 45601 | G23: 45602 | H23: 45603 | I23: 45604 | J23: 45605 | K23: 45606 | L23: 45607 | M23: 45608 | N23: 45609 | O23: 45610 | P23: 45611 | Q23: 45612 | R23: 45613 | S23: 45614 | T23: 45615 | U23: 45616 | V23: 45617 | W23: 45618 | X23: 45619 | Y23: 45620 | Z23: 45621 | AA23: 45622 | AB23: 45623 | AC23: 45624 | AD23: 45625 | AE23: 45626 | AG23: =Erfassung!$D$2/12 -> 2.5 | AH23: =IF(AG23="","",AG23*(Erfassung!$B$2/5)*SUM(Erfassung!E$2)) -> 21
A24: November | B24: =IF(ISNA(VLOOKUP(B23,Feiertage!$A:$C,3,FALSE)),IF(OR(WEEKDAY(B23)=1,WEEKDAY(B23)=7),"",Erfassung!$B$2*SUM(Erfassung!$O2:$O2)/5),"F") -> 8.4 | C24: =IF(ISNA(VLOOKUP(C23,Feiertage!$A:$C,3,FALSE)),IF(OR(WEEKDAY(C23)=1,WEEKDAY(C23)=7),"",Erfassung!$B$2*SUM(Erfassung!$O2:$O2)/5),"F") ->  | D24: =IF(ISNA(VLOOKUP(D23,Feiertage!$A:$C,3,FALSE)),IF(OR(WEEKDAY(D23)=1,WEEKDAY(D23)=7),"",Erfassung!$B$2*SUM(Erfassung!$O2:$O2)/5),"F") ->  | E24: =IF(ISNA(VLOOKUP(E23,Feiertage!$A:$C,3,FALSE)),IF(OR(WEEKDAY(E23)=1,WEEKDAY(E23)=7),"",Erfassung!$B$2*SUM(Erfassung!$O2:$O2)/5),"F") -> 8.4 | F24: =IF(ISNA(VLOOKUP(F23,Feiertage!$A:$C,3,FALSE)),IF(OR(WEEKDAY(F23)=1,WEEKDAY(F23)=7),"",Erfassung!$B$2*SUM(Erfassung!$O2:$O2)/5),"F") -> 8.4 | G24: =IF(ISNA(VLOOKUP(G23,Feiertage!$A:$C,3,FALSE)),IF(OR(WEEKDAY(G23)=1,WEEKDAY(G23)=7),"",Erfassung!$B$2*SUM(Erfassung!$O2:$O2)/5),"F") -> 8.4 | H24: =IF(ISNA(VLOOKUP(H23,Feiertage!$A:$C,3,FALSE)),IF(OR(WEEKDAY(H23)=1,WEEKDAY(H23)=7),"",Erfassung!$B$2*SUM(Erfassung!$O2:$O2)/5),"F") -> 8.4 | I24: =IF(ISNA(VLOOKUP(I23,Feiertage!$A:$C,3,FALSE)),IF(OR(WEEKDAY(I23)=1,WEEKDAY(I23)=7),"",Erfassung!$B$2*SUM(Erfassung!$O2:$O2)/5),"F") -> 8.4 | J24: =IF(ISNA(VLOOKUP(J23,Feiertage!$A:$C,3,FALSE)),IF(OR(WEEKDAY(J23)=1,WEEKDAY(J23)=7),"",Erfassung!$B$2*SUM(Erfassung!$O2:$O2)/5),"F") ->  | K24: =IF(ISNA(VLOOKUP(K23,Feiertage!$A:$C,3,FALSE)),IF(OR(WEEKDAY(K23)=1,WEEKDAY(K23)=7),"",Erfassung!$B$2*SUM(Erfassung!$O2:$O2)/5),"F") ->  | L24: =IF(ISNA(VLOOKUP(L23,Feiertage!$A:$C,3,FALSE)),IF(OR(WEEKDAY(L23)=1,WEEKDAY(L23)=7),"",Erfassung!$B$2*SUM(Erfassung!$O2:$O2)/5),"F") -> 8.4 | M24: =IF(ISNA(VLOOKUP(M23,Feiertage!$A:$C,3,FALSE)),IF(OR(WEEKDAY(M23)=1,WEEKDAY(M23)=7),"",Erfassung!$B$2*SUM(Erfassung!$O2:$O2)/5),"F") -> 8.4 | N24: =IF(ISNA(VLOOKUP(N23,Feiertage!$A:$C,3,FALSE)),IF(OR(WEEKDAY(N23)=1,WEEKDAY(N23)=7),"",Erfassung!$B$2*SUM(Erfassung!$O2:$O2)/5),"F") -> 8.4 | O24: =IF(ISNA(VLOOKUP(O23,Feiertage!$A:$C,3,FALSE)),IF(OR(WEEKDAY(O23)=1,WEEKDAY(O23)=7),"",Erfassung!$B$2*SUM(Erfassung!$O2:$O2)/5),"F") -> 8.4 | P24: =IF(ISNA(VLOOKUP(P23,Feiertage!$A:$C,3,FALSE)),IF(OR(WEEKDAY(P23)=1,WEEKDAY(P23)=7),"",Erfassung!$B$2*SUM(Erfassung!$O2:$O2)/5),"F") -> 8.4 | Q24: =IF(ISNA(VLOOKUP(Q23,Feiertage!$A:$C,3,FALSE)),IF(OR(WEEKDAY(Q23)=1,WEEKDAY(Q23)=7),"",Erfassung!$B$2*SUM(Erfassung!$O2:$O2)/5),"F") ->  | R24: =IF(ISNA(VLOOKUP(R23,Feiertage!$A:$C,3,FALSE)),IF(OR(WEEKDAY(R23)=1,WEEKDAY(R23)=7),"",Erfassung!$B$2*SUM(Erfassung!$O2:$O2)/5),"F") ->  | S24: =IF(ISNA(VLOOKUP(S23,Feiertage!$A:$C,3,FALSE)),IF(OR(WEEKDAY(S23)=1,WEEKDAY(S23)=7),"",Erfassung!$B$2*SUM(Erfassung!$O2:$O2)/5),"F") -> 8.4 | T24: =IF(ISNA(VLOOKUP(T23,Feiertage!$A:$C,3,FALSE)),IF(OR(WEEKDAY(T23)=1,WEEKDAY(T23)=7),"",Erfassung!$B$2*SUM(Erfassung!$O2:$O2)/5),"F") -> 8.4 | U24: =IF(ISNA(VLOOKUP(U23,Feiertage!$A:$C,3,FALSE)),IF(OR(WEEKDAY(U23)=1,WEEKDAY(U23)=7),"",Erfassung!$B$2*SUM(Erfassung!$O2:$O2)/5),"F") -> 8.4 | V24: =IF(ISNA(VLOOKUP(V23,Feiertage!$A:$C,3,FALSE)),IF(OR(WEEKDAY(V23)=1,WEEKDAY(V23)=7),"",Erfassung!$B$2*SUM(Erfassung!$O2:$O2)/5),"F") -> 8.4 | W24: =IF(ISNA(VLOOKUP(W23,Feiertage!$A:$C,3,FALSE)),IF(OR(WEEKDAY(W23)=1,WEEKDAY(W23)=7),"",Erfassung!$B$2*SUM(Erfassung!$O2:$O2)/5),"F") -> 8.4 | X24: =IF(ISNA(VLOOKUP(X23,Feiertage!$A:$C,3,FALSE)),IF(OR(WEEKDAY(X23)=1,WEEKDAY(X23)=7),"",Erfassung!$B$2*SUM(Erfassung!$O2:$O2)/5),"F") ->  | Y24: =IF(ISNA(VLOOKUP(Y23,Feiertage!$A:$C,3,FALSE)),IF(OR(WEEKDAY(Y23)=1,WEEKDAY(Y23)=7),"",Erfassung!$B$2*SUM(Erfassung!$O2:$O2)/5),"F") ->  | Z24: =IF(ISNA(VLOOKUP(Z23,Feiertage!$A:$C,3,FALSE)),IF(OR(WEEKDAY(Z23)=1,WEEKDAY(Z23)=7),"",Erfassung!$B$2*SUM(Erfassung!$O2:$O2)/5),"F") -> 8.4 | AA24: =IF(ISNA(VLOOKUP(AA23,Feiertage!$A:$C,3,FALSE)),IF(OR(WEEKDAY(AA23)=1,WEEKDAY(AA23)=7),"",Erfassung!$B$2*SUM(Erfassung!$O2:$O2)/5),"F") -> 8.4 | AB24: =IF(ISNA(VLOOKUP(AB23,Feiertage!$A:$C,3,FALSE)),IF(OR(WEEKDAY(AB23)=1,WEEKDAY(AB23)=7),"",Erfassung!$B$2*SUM(Erfassung!$O2:$O2)/5),"F") -> 8.4 | AC24: =IF(ISNA(VLOOKUP(AC23,Feiertage!$A:$C,3,FALSE)),IF(OR(WEEKDAY(AC23)=1,WEEKDAY(AC23)=7),"",Erfassung!$B$2*SUM(Erfassung!$O2:$O2)/5),"F") -> 8.4 | AD24: =IF(ISNA(VLOOKUP(AD23,Feiertage!$A:$C,3,FALSE)),IF(OR(WEEKDAY(AD23)=1,WEEKDAY(AD23)=7),"",Erfassung!$B$2*SUM(Erfassung!$O2:$O2)/5),"F") -> 8.4 | AE24: =IF(ISNA(VLOOKUP(AE23,Feiertage!$A:$C,3,FALSE)),IF(OR(WEEKDAY(AE23)=1,WEEKDAY(AE23)=7),"",Erfassung!$B$2*SUM(Erfassung!$O2:$O2)/5),"F") ->  | AF24: =IF(ISNA(VLOOKUP(AF23,Feiertage!$A:$C,3,FALSE)),IF(OR(WEEKDAY(AF23)=1,WEEKDAY(AF23)=7),"",Erfassung!$B$2*SUM(Erfassung!$O2:$O2)/5),"F") ->  | AG24: =Erfassung!$D$2/12 -> 2.5 | AH24: =IF(AG24="","",AG24*(Erfassung!$B$2/5)*SUM(Erfassung!O$2)) -> 21 | AI24: =COUNT(B24:AF24,"<0.1") -> 21 | AJ24: =SUM(B24:AF24) -> 176.4 | AK24: November
B25: =AE23+1 -> 2024-12-01 | C25: =B25+1 -> 45628 | D25: 45629 | E25: 45630 | F25: 45631 | G25: 45632 | H25: 45633 | I25: 45634 | J25: 45635 | K25: 45636 | L25: 45637 | M25: 45638 | N25: 45639 | O25: 45640 | P25: 45641 | Q25: 45642 | R25: 45643 | S25: 45644 | T25: 45645 | U25: 45646 | V25: 45647 | W25: 45648 | X25: 45649 | Y25: 45650 | Z25: 45651 | AA25: 45652 | AB25: 45653 | AC25: 45654 | AD25: 45655 | AE25: 45656 | AF25: 45657 | AG25: =Erfassung!$D$2/12 -> 2.5 | AH25: =IF(AG25="","",AG25*(Erfassung!$B$2/5)*SUM(Erfassung!E$2)) -> 21
A26: Dezbember | B26: =IF(ISNA(VLOOKUP(B25,Feiertage!$A:$C,3,FALSE)),IF(OR(WEEKDAY(B25)=1,WEEKDAY(B25)=7),"",Erfassung!$B$2*SUM(Erfassung!$P2:$P2)/5),"F") ->  | C26: =IF(ISNA(VLOOKUP(C25,Feiertage!$A:$C,3,FALSE)),IF(OR(WEEKDAY(C25)=1,WEEKDAY(C25)=7),"",Erfassung!$B$2*SUM(Erfassung!$P2:$P2)/5),"F") -> 8.4 | D26: =IF(ISNA(VLOOKUP(D25,Feiertage!$A:$C,3,FALSE)),IF(OR(WEEKDAY(D25)=1,WEEKDAY(D25)=7),"",Erfassung!$B$2*SUM(Erfassung!$P2:$P2)/5),"F") -> 8.4 | E26: =IF(ISNA(VLOOKUP(E25,Feiertage!$A:$C,3,FALSE)),IF(OR(WEEKDAY(E25)=1,WEEKDAY(E25)=7),"",Erfassung!$B$2*SUM(Erfassung!$P2:$P2)/5),"F") -> 8.4 | F26: =IF(ISNA(VLOOKUP(F25,Feiertage!$A:$C,3,FALSE)),IF(OR(WEEKDAY(F25)=1,WEEKDAY(F25)=7),"",Erfassung!$B$2*SUM(Erfassung!$P2:$P2)/5),"F") -> 8.4 | G26: =IF(ISNA(VLOOKUP(G25,Feiertage!$A:$C,3,FALSE)),IF(OR(WEEKDAY(G25)=1,WEEKDAY(G25)=7),"",Erfassung!$B$2*SUM(Erfassung!$P2:$P2)/5),"F") -> 8.4 | H26: =IF(ISNA(VLOOKUP(H25,Feiertage!$A:$C,3,FALSE)),IF(OR(WEEKDAY(H25)=1,WEEKDAY(H25)=7),"",Erfassung!$B$2*SUM(Erfassung!$P2:$P2)/5),"F") ->  | I26: =IF(ISNA(VLOOKUP(I25,Feiertage!$A:$C,3,FALSE)),IF(OR(WEEKDAY(I25)=1,WEEKDAY(I25)=7),"",Erfassung!$B$2*SUM(Erfassung!$P2:$P2)/5),"F") ->  | J26: =IF(ISNA(VLOOKUP(J25,Feiertage!$A:$C,3,FALSE)),IF(OR(WEEKDAY(J25)=1,WEEKDAY(J25)=7),"",Erfassung!$B$2*SUM(Erfassung!$P2:$P2)/5),"F") -> 8.4 | K26: =IF(ISNA(VLOOKUP(K25,Feiertage!$A:$C,3,FALSE)),IF(OR(WEEKDAY(K25)=1,WEEKDAY(K25)=7),"",Erfassung!$B$2*SUM(Erfassung!$P2:$P2)/5),"F") -> 8.4 | L26: =IF(ISNA(VLOOKUP(L25,Feiertage!$A:$C,3,FALSE)),IF(OR(WEEKDAY(L25)=1,WEEKDAY(L25)=7),"",Erfassung!$B$2*SUM(Erfassung!$P2:$P2)/5),"F") -> 8.4 | M26: =IF(ISNA(VLOOKUP(M25,Feiertage!$A:$C,3,FALSE)),IF(OR(WEEKDAY(M25)=1,WEEKDAY(M25)=7),"",Erfassung!$B$2*SUM(Erfassung!$P2:$P2)/5),"F") -> 8.4 | N26: =IF(ISNA(VLOOKUP(N25,Feiertage!$A:$C,3,FALSE)),IF(OR(WEEKDAY(N25)=1,WEEKDAY(N25)=7),"",Erfassung!$B$2*SUM(Erfassung!$P2:$P2)/5),"F") -> 8.4 | O26: =IF(ISNA(VLOOKUP(O25,Feiertage!$A:$C,3,FALSE)),IF(OR(WEEKDAY(O25)=1,WEEKDAY(O25)=7),"",Erfassung!$B$2*SUM(Erfassung!$P2:$P2)/5),"F") ->  | P26: =IF(ISNA(VLOOKUP(P25,Feiertage!$A:$C,3,FALSE)),IF(OR(WEEKDAY(P25)=1,WEEKDAY(P25)=7),"",Erfassung!$B$2*SUM(Erfassung!$P2:$P2)/5),"F") ->  | Q26: =IF(ISNA(VLOOKUP(Q25,Feiertage!$A:$C,3,FALSE)),IF(OR(WEEKDAY(Q25)=1,WEEKDAY(Q25)=7),"",Erfassung!$B$2*SUM(Erfassung!$P2:$P2)/5),"F") -> 8.4 | R26: =IF(ISNA(VLOOKUP(R25,Feiertage!$A:$C,3,FALSE)),IF(OR(WEEKDAY(R25)=1,WEEKDAY(R25)=7),"",Erfassung!$B$2*SUM(Erfassung!$P2:$P2)/5),"F") -> 8.4 | S26: =IF(ISNA(VLOOKUP(S25,Feiertage!$A:$C,3,FALSE)),IF(OR(WEEKDAY(S25)=1,WEEKDAY(S25)=7),"",Erfassung!$B$2*SUM(Erfassung!$P2:$P2)/5),"F") -> 8.4 | T26: =IF(ISNA(VLOOKUP(T25,Feiertage!$A:$C,3,FALSE)),IF(OR(WEEKDAY(T25)=1,WEEKDAY(T25)=7),"",Erfassung!$B$2*SUM(Erfassung!$P2:$P2)/5),"F") -> 8.4 | U26: =IF(ISNA(VLOOKUP(U25,Feiertage!$A:$C,3,FALSE)),IF(OR(WEEKDAY(U25)=1,WEEKDAY(U25)=7),"",Erfassung!$B$2*SUM(Erfassung!$P2:$P2)/5),"F") -> 8.4 | V26: =IF(ISNA(VLOOKUP(V25,Feiertage!$A:$C,3,FALSE)),IF(OR(WEEKDAY(V25)=1,WEEKDAY(V25)=7),"",Erfassung!$B$2*SUM(Erfassung!$P2:$P2)/5),"F") ->  | W26: =IF(ISNA(VLOOKUP(W25,Feiertage!$A:$C,3,FALSE)),IF(OR(WEEKDAY(W25)=1,WEEKDAY(W25)=7),"",Erfassung!$B$2*SUM(Erfassung!$P2:$P2)/5),"F") ->  | X26: =IF(ISNA(VLOOKUP(X25,Feiertage!$A:$C,3,FALSE)),IF(OR(WEEKDAY(X25)=1,WEEKDAY(X25)=7),"",Erfassung!$B$2*SUM(Erfassung!$P2:$P2)/5),"F") -> 8.4 | Y26: =IF(ISNA(VLOOKUP(Y25,Feiertage!$A:$C,3,FALSE)),IF(OR(WEEKDAY(Y25)=1,WEEKDAY(Y25)=7),"",Erfassung!$B$2*SUM(Erfassung!$P2:$P2)/5),"F") -> 8.4 | Z26: =IF(ISNA(VLOOKUP(Z25,Feiertage!$A:$C,3,FALSE)),IF(OR(WEEKDAY(Z25)=1,WEEKDAY(Z25)=7),"",Erfassung!$B$2*SUM(Erfassung!$P2:$P2)/5),"F") -> F | AA26: =IF(ISNA(VLOOKUP(AA25,Feiertage!$A:$C,3,FALSE)),IF(OR(WEEKDAY(AA25)=1,WEEKDAY(AA25)=7),"",Erfassung!$B$2*SUM(Erfassung!$P2:$P2)/5),"F") -> F | AB26: =IF(ISNA(VLOOKUP(AB25,Feiertage!$A:$C,3,FALSE)),IF(OR(WEEKDAY(AB25)=1,WEEKDAY(AB25)=7),"",Erfassung!$B$2*SUM(Erfassung!$P2:$P2)/5),"F") -> 8.4 | AC26: =IF(ISNA(VLOOKUP(AC25,Feiertage!$A:$C,3,FALSE)),IF(OR(WEEKDAY(AC25)=1,WEEKDAY(AC25)=7),"",Erfassung!$B$2*SUM(Erfassung!$P2:$P2)/5),"F") ->  | AD26: =IF(ISNA(VLOOKUP(AD25,Feiertage!$A:$C,3,FALSE)),IF(OR(WEEKDAY(AD25)=1,WEEKDAY(AD25)=7),"",Erfassung!$B$2*SUM(Erfassung!$P2:$P2)/5),"F") ->  | AE26: =IF(ISNA(VLOOKUP(AE25,Feiertage!$A:$C,3,FALSE)),IF(OR(WEEKDAY(AE25)=1,WEEKDAY(AE25)=7),"",Erfassung!$B$2*SUM(Erfassung!$P2:$P2)/5),"F") -> 8.4 | AF26: =IF(ISNA(VLOOKUP(AF25,Feiertage!$A:$C,3,FALSE)),IF(OR(WEEKDAY(AF25)=1,WEEKDAY(AF25)=7),"",Erfassung!$B$2*SUM(Erfassung!$P2:$P2)/5),"F") -> 8.4 | AG26: =Erfassung!$D$2/12 -> 2.5 | AH26: =IF(AG26="","",AG26*(Erfassung!$B$2/5)*SUM(Erfassung!P$2)) -> 21 | AI26: =COUNT(B26:AF26,"<0.1") -> 20 | AJ26: =SUM(B26:AF26) -> 168 | AK26: Dezember
A28: Legende: | C28: Ferien | G28: Arbeitstage | K28: Wochenende | N28: F | O28: Feiertage | AJ28: Total Arbeitstage Jahr: | AK28: =SUM(AI4,AI6,AI8,AI10,AI12,AI14,AI16,AI18,AI20,AI22,AI24,AI26) -> 253
AJ31: Ferien | AK31: =SUM(AH4,AH6,AH8,AH10,AH12,AH14,AH16,AH18,AH20,AH22,AH24,AH26) -> 252
L32: Die roten Resultate unter | M32: http://sk-app.ch/WorkingHours?page=1 | T32: im sk-app erfassen. | AJ32: Jahresarbeitszeit: | AK32: =SUM(AJ4,AJ6,AJ8,AJ10,AJ12,AJ14,AJ16,AJ18,AJ20,AJ22,AJ24,AJ26) -> 2121
